Effective Date,Department,Supplier Name,Payment Date,Amount **,Purpose of Spend,Merchant Category,Card Transaction
Statement 18/09/2015 - 19/10/2015,Adults and Communities,ALDI,01/10/2015,9.87,Provisions- General,"Grocery Stores, Supermarkets",GPC
Statement 18/09/2015 - 19/10/2015,Adults and Communities,ALLPAY.NET VISA AND MAST,01/10/2015,65.67,General Equipment- General,Charitable and Social Service Organizations,GPC
Statement 18/09/2015 - 19/10/2015,Adults and Communities,Amazon Svcs Europe SAR,21/09/2015,2.20,Books- General,Book Stores,GPC
Statement 18/09/2015 - 19/10/2015,Adults and Communities,Amazon Svcs Europe SAR,17/10/2015,39.75,Books- General,Book Stores,GPC
Statement 18/09/2015 - 19/10/2015,Adults and Communities,Amazon Svcs Europe SAR,30/09/2015,3.79,Other Equipment & Materials- General,Book Stores,GPC
Statement 18/09/2015 - 19/10/2015,Adults and Communities,Amazon Svcs Europe SAR,11/10/2015,4.60,Other Equipment & Materials- General,Book Stores,GPC
Statement 18/09/2015 - 19/10/2015,Adults and Communities,Amazon UK Marketplace,24/09/2015,5.80,Books- General,Book Stores,GPC
Statement 18/09/2015 - 19/10/2015,Adults and Communities,Amazon UK Marketplace,29/09/2015,12.49,Books- General,Book Stores,GPC
Statement 18/09/2015 - 19/10/2015,Adults and Communities,Amazon UK Marketplace,01/10/2015,26.99,Books- General,Book Stores,GPC
Statement 18/09/2015 - 19/10/2015,Adults and Communities,Amazon UK Marketplace,07/10/2015,36.80,Display/Conservn/Exhibitions- Displays/Field Research,Miscellaneous and Specialty Retail Stores,GPC
Statement 18/09/2015 - 19/10/2015,Adults and Communities,Amazon UK Marketplace,21/09/2015,20.68,Display/Conservn/Exhibitions- General,Miscellaneous and Specialty Retail Stores,GPC
Statement 18/09/2015 - 19/10/2015,Adults and Communities,Amazon UK Marketplace,21/09/2015,19.17,Display/Conservn/Exhibitions- General,Miscellaneous and Specialty Retail Stores,GPC
Statement 18/09/2015 - 19/10/2015,Adults and Communities,Amazon UK Marketplace,22/09/2015,2.40,Display/Conservn/Exhibitions- General,Miscellaneous and Specialty Retail Stores,GPC
Statement 18/09/2015 - 19/10/2015,Adults and Communities,Amazon UK Marketplace,02/10/2015,46.97,General Equipment- General,Book Stores,GPC
Statement 18/09/2015 - 19/10/2015,Adults and Communities,Amazon UK Marketplace,14/10/2015,4.46,IT Equipment- General,Miscellaneous and Specialty Retail Stores,GPC
Statement 18/09/2015 - 19/10/2015,Adults and Communities,Amazon UK Marketplace,29/09/2015,25.90,Materials- General,Miscellaneous and Specialty Retail Stores,GPC
Statement 18/09/2015 - 19/10/2015,Adults and Communities,Amazon UK Marketplace,01/10/2015,26.74,Materials- General,Miscellaneous and Specialty Retail Stores,GPC
Statement 18/09/2015 - 19/10/2015,Adults and Communities,Amazon UK Marketplace,07/10/2015,108.49,Materials- General,Miscellaneous and Specialty Retail Stores,GPC
Statement 18/09/2015 - 19/10/2015,Adults and Communities,Amazon UK Marketplace,08/10/2015,75.20,Materials- General,Miscellaneous and Specialty Retail Stores,GPC
Statement 18/09/2015 - 19/10/2015,Adults and Communities,Amazon UK Marketplace,17/09/2015,1.89,Other Equipment & Materials- General,Miscellaneous and Specialty Retail Stores,GPC
Statement 18/09/2015 - 19/10/2015,Adults and Communities,Amazon UK Marketplace,23/09/2015,1.70,Other Equipment & Materials- General,Book Stores,GPC
Statement 18/09/2015 - 19/10/2015,Adults and Communities,Amazon UK Marketplace,23/09/2015,4.98,Other Equipment & Materials- General,Miscellaneous and Specialty Retail Stores,GPC
Statement 18/09/2015 - 19/10/2015,Adults and Communities,Amazon UK Marketplace,27/09/2015,4.45,Other Equipment & Materials- General,Miscellaneous and Specialty Retail Stores,GPC
Statement 18/09/2015 - 19/10/2015,Adults and Communities,Amazon UK Marketplace,28/09/2015,2.32,Other Equipment & Materials- General,Miscellaneous and Specialty Retail Stores,GPC
Statement 18/09/2015 - 19/10/2015,Adults and Communities,Amazon UK Marketplace,28/09/2015,1.99,Other Equipment & Materials- General,Miscellaneous and Specialty Retail Stores,GPC
Statement 18/09/2015 - 19/10/2015,Adults and Communities,Amazon UK Marketplace,29/09/2015,3.17,Other Equipment & Materials- General,Book Stores,GPC
Statement 18/09/2015 - 19/10/2015,Adults and Communities,Amazon UK Marketplace,29/09/2015,4.96,Other Equipment & Materials- General,Book Stores,GPC
Statement 18/09/2015 - 19/10/2015,Adults and Communities,Amazon UK Marketplace,29/09/2015,8.80,Other Equipment & Materials- General,Miscellaneous and Specialty Retail Stores,GPC
Statement 18/09/2015 - 19/10/2015,Adults and Communities,Amazon UK Marketplace,29/09/2015,1.63,Other Equipment & Materials- General,Miscellaneous and Specialty Retail Stores,GPC
Statement 18/09/2015 - 19/10/2015,Adults and Communities,Amazon UK Marketplace,30/09/2015,19.18,Other Equipment & Materials- General,Book Stores,GPC
Statement 18/09/2015 - 19/10/2015,Adults and Communities,Amazon UK Marketplace,07/10/2015,22.36,Other Equipment & Materials- General,Miscellaneous and Specialty Retail Stores,GPC
Statement 18/09/2015 - 19/10/2015,Adults and Communities,Amazon UK Marketplace,17/09/2015,2.40,Other Expenditure- General,Miscellaneous and Specialty Retail Stores,GPC
Statement 18/09/2015 - 19/10/2015,Adults and Communities,Amazon UK Marketplace,18/09/2015,19.83,Other Expenditure- General,Book Stores,GPC
Statement 18/09/2015 - 19/10/2015,Adults and Communities,Amazon UK Marketplace,29/09/2015,2.44,Other Expenditure- General,Book Stores,GPC
Statement 18/09/2015 - 19/10/2015,Adults and Communities,Amazon UK Marketplace,06/10/2015,7.50,Other Services- General,Miscellaneous and Specialty Retail Stores,GPC
Statement 18/09/2015 - 19/10/2015,Adults and Communities,Amazon UK Marketplace,17/09/2015,27.71,Stationery- General,Miscellaneous and Specialty Retail Stores,GPC
Statement 18/09/2015 - 19/10/2015,Adults and Communities,Amazon UK Marketplace,18/09/2015,24.00,Stationery- General,Book Stores,GPC
Statement 18/09/2015 - 19/10/2015,Adults and Communities,Amazon UK Marketplace,19/09/2015,3.74,Stationery- General,Miscellaneous and Specialty Retail Stores,GPC
Statement 18/09/2015 - 19/10/2015,Adults and Communities,Amazon UK Marketplace,23/09/2015,8.48,Stationery- General,Book Stores,GPC
Statement 18/09/2015 - 19/10/2015,Adults and Communities,Amazon UK Marketplace,24/09/2015,13.24,Stationery- General,Miscellaneous and Specialty Retail Stores,GPC
Statement 18/09/2015 - 19/10/2015,Adults and Communities,Amazon UK Marketplace,16/10/2015,43.98,Stationery- General,Miscellaneous and Specialty Retail Stores,GPC
Statement 18/09/2015 - 19/10/2015,Adults and Communities,Amazon UK Marketplace,07/10/2015,2.19,Telephones- Mobile Phones,Miscellaneous and Specialty Retail Stores,GPC
Statement 18/09/2015 - 19/10/2015,Adults and Communities,Amazon UK Retail,24/09/2015,31.76,General Equipment- General,Direct Marketers - Other,GPC
Statement 18/09/2015 - 19/10/2015,Adults and Communities,Amazon UK Retail,26/09/2015,10.83,Materials- General,Direct Marketers - Other,GPC
Statement 18/09/2015 - 19/10/2015,Adults and Communities,Amazon UK Retail,21/09/2015,-13.73,Other Equipment & Materials- General,Direct Marketers - Other,GPC
Statement 18/09/2015 - 19/10/2015,Adults and Communities,Amazon UK Retail,23/09/2015,11.99,Other Equipment & Materials- General,Direct Marketers - Other,GPC
Statement 18/09/2015 - 19/10/2015,Adults and Communities,Amazon UK Retail,24/09/2015,10.61,Other Equipment & Materials- General,Direct Marketers - Other,GPC
Statement 18/09/2015 - 19/10/2015,Adults and Communities,Amazon UK Retail,13/10/2015,12.07,Other Equipment & Materials- General,Direct Marketers - Other,GPC
Statement 18/09/2015 - 19/10/2015,Adults and Communities,Amazon UK Retail,14/10/2015,10.33,Other Equipment & Materials- General,Direct Marketers - Other,GPC
Statement 18/09/2015 - 19/10/2015,Adults and Communities,Amazon UK Retail,28/09/2015,19.73,Other Expenditure- General,Direct Marketers - Other,GPC
Statement 18/09/2015 - 19/10/2015,Adults and Communities,Amazon UK Retail,06/10/2015,45.96,Other Expenditure- General,Direct Marketers - Other,GPC
Statement 18/09/2015 - 19/10/2015,Adults and Communities,Amazon UK Retail,07/10/2015,111.75,Other Expenditure- General,Direct Marketers - Other,GPC
Statement 18/09/2015 - 19/10/2015,Adults and Communities,Amazon UK Retail,15/10/2015,15.74,Other Expenditure- General,Direct Marketers - Other,GPC
Statement 18/09/2015 - 19/10/2015,Adults and Communities,Amazon UK Retail,06/10/2015,34.24,Stationery- General,Direct Marketers - Other,GPC
Statement 18/09/2015 - 19/10/2015,Adults and Communities,Amazon UK Retail,09/10/2015,46.91,Stationery- General,Direct Marketers - Other,GPC
Statement 18/09/2015 - 19/10/2015,Adults and Communities,ARGOS LTD,25/09/2015,236.70,General Equipment- General,Discount Stores,GPC
Statement 18/09/2015 - 19/10/2015,Adults and Communities,ARGOS LTD,05/10/2015,37.98,Materials- General,Discount Stores,GPC
Statement 18/09/2015 - 19/10/2015,Adults and Communities,ARGOS LTD,08/10/2015,160.94,Materials- General,Discount Stores,GPC
Statement 18/09/2015 - 19/10/2015,Adults and Communities,ARGOS LTD,08/10/2015,64.72,Materials- General,Discount Stores,GPC
Statement 18/09/2015 - 19/10/2015,Adults and Communities,ARGOS LTD,07/10/2015,58.32,Provisions- General,Discount Stores,GPC
Statement 18/09/2015 - 19/10/2015,Adults and Communities,ASDA STORES 4477,17/10/2015,6.18,Materials- General,"Grocery Stores, Supermarkets",GPC
Statement 18/09/2015 - 19/10/2015,Adults and Communities,ASDA STORES 4477,21/09/2015,2.45,Other Equipment & Materials- General,"Grocery Stores, Supermarkets",GPC
Statement 18/09/2015 - 19/10/2015,Adults and Communities,ASDA STORES 4798,25/09/2015,9.60,Protective Clothing & Uniforms- General,"Grocery Stores, Supermarkets",GPC
Statement 18/09/2015 - 19/10/2015,Adults and Communities,ASDA SUPERSTORE,18/09/2015,28.11,Provisions- General,"Grocery Stores, Supermarkets",GPC
Statement 18/09/2015 - 19/10/2015,Adults and Communities,ASDA SUPERSTORE  4156,21/09/2015,11.27,Materials- General,"Grocery Stores, Supermarkets",GPC
Statement 18/09/2015 - 19/10/2015,Adults and Communities,ASDA SUPERSTORE  4156,21/09/2015,6.65,Materials- General,"Grocery Stores, Supermarkets",GPC
Statement 18/09/2015 - 19/10/2015,Adults and Communities,B & Q,30/09/2015,16.58,General Equipment- General,"Building Materials, Lumber Stores",GPC
Statement 18/09/2015 - 19/10/2015,Adults and Communities,B & Q,25/09/2015,29.08,R & M of Buildings- General,"Building Materials, Lumber Stores",GPC
Statement 18/09/2015 - 19/10/2015,Adults and Communities,B&Q,15/09/2015,77.14,Aids & Adaptations- Minor Adaptations,"Building Materials, Lumber Stores",GPC
Statement 18/09/2015 - 19/10/2015,Adults and Communities,BAILEY'S OF NORFOLK LT,08/10/2015,247.50,Operational Equipment- General,Nondurable Goods Not Elsewhere Classified,GPC
Statement 18/09/2015 - 19/10/2015,Adults and Communities,BAREFOOT,29/09/2015,301.00,Materials- General,Luggage and Leather Goods Stores,GPC
Statement 18/09/2015 - 19/10/2015,Adults and Communities,BC.BASECAMP 2997305,01/10/2015,13.24,Stationery- General,Membership Organizations-Not Elsewhere Classified,GPC
Statement 18/09/2015 - 19/10/2015,Adults and Communities,BETTER EQUIPPED SUPPLI,06/10/2015,28.39,Other Equipment & Materials- General,Miscellaneous and Specialty Retail Stores,GPC
Statement 18/09/2015 - 19/10/2015,Adults and Communities,BOC TEL ORDER,14/10/2015,6.76,Display/Conservn/Exhibitions- General,Chemicals and Allied Products Not Elsewhere Classi,GPC
Statement 18/09/2015 - 19/10/2015,Adults and Communities,BOHEMIA BEAUTY LTD,02/10/2015,17.00,Educational Visits- General,Glassware and Crystal Stores,GPC
Statement 18/09/2015 - 19/10/2015,Adults and Communities,BROUGHTON NEWS (SPAR),13/10/2015,171.70,Newspapers & Periodicals- General,"Miscellaneous Food Stores-Convenience Stores, Mark",GPC
Statement 18/09/2015 - 19/10/2015,Adults and Communities,BT PAY BY PHONE,23/09/2015,99.60,Communications Equipment- General,Telecommunication Service Including Local and Long,GPC
Statement 18/09/2015 - 19/10/2015,Adults and Communities,BUDGENS,24/09/2015,13.03,Materials- General,"Grocery Stores, Supermarkets",GPC
Statement 18/09/2015 - 19/10/2015,Adults and Communities,BUDGENS,16/10/2015,12.44,Materials- General,"Grocery Stores, Supermarkets",GPC
Statement 18/09/2015 - 19/10/2015,Adults and Communities,CANVA.COM,08/10/2015,0.66,Printing- General,Photographic Studios,GPC
Statement 18/09/2015 - 19/10/2015,Adults and Communities,CENTRAL CO-OP RETA,19/09/2015,39.89,Materials- General,Department Stores,GPC
Statement 18/09/2015 - 19/10/2015,Adults and Communities,CENTRAL ENG COOP,17/09/2015,5.25,Materials- General,Department Stores,GPC
Statement 18/09/2015 - 19/10/2015,Adults and Communities,CENTRAL ENG COOP,18/09/2015,52.17,Materials- General,Department Stores,GPC
Statement 18/09/2015 - 19/10/2015,Adults and Communities,CENTRAL ENG COOP,19/09/2015,53.75,Materials- General,Department Stores,GPC
Statement 18/09/2015 - 19/10/2015,Adults and Communities,CENTRAL ENG COOP,21/09/2015,61.21,Materials- General,Department Stores,GPC
Statement 18/09/2015 - 19/10/2015,Adults and Communities,CENTRAL ENG COOP,24/09/2015,4.27,Materials- General,Department Stores,GPC
Statement 18/09/2015 - 19/10/2015,Adults and Communities,CENTRAL ENG COOP,08/10/2015,65.60,Materials- General,Department Stores,GPC
Statement 18/09/2015 - 19/10/2015,Adults and Communities,CENTRAL ENG COOP,10/10/2015,88.23,Materials- General,Department Stores,GPC
Statement 18/09/2015 - 19/10/2015,Adults and Communities,CENTRAL ENG COOP,10/10/2015,4.94,Materials- General,Department Stores,GPC
Statement 18/09/2015 - 19/10/2015,Adults and Communities,CENTRAL ENG COOP,14/10/2015,23.34,Materials- General,Department Stores,GPC
Statement 18/09/2015 - 19/10/2015,Adults and Communities,CENTRAL ENG COOP,15/10/2015,4.49,Materials- General,Department Stores,GPC
Statement 18/09/2015 - 19/10/2015,Adults and Communities,CENTRAL ENG COOP,18/10/2015,5.65,Materials- General,Department Stores,GPC
Statement 18/09/2015 - 19/10/2015,Adults and Communities,CHARNWOOD BOROUGH COUNCI,23/09/2015,6.00,Casual/Essential- General,Automobile Parking Lots and Garages,GPC
Statement 18/09/2015 - 19/10/2015,Adults and Communities,CHURCHILL CATERING LTD,09/10/2015,45.21,Other Services- General,Fast-Food Restaurants (Quick Payment Service Pilot,GPC
Statement 18/09/2015 - 19/10/2015,Adults and Communities,CLEAN EXPRESS COALVILL,29/09/2015,98.00,Laundry- General,Dry Cleaners,GPC
Statement 18/09/2015 - 19/10/2015,Adults and Communities,COALVILLE DIY STORE,14/10/2015,14.80,Aids & Adaptations- Minor Adaptations,"Glass, Paint, Wallpaper Stores",GPC
Statement 18/09/2015 - 19/10/2015,Adults and Communities,COSTA COFFEE,24/09/2015,3.90,Subsistence- General,Fast-Food Restaurants (Quick Payment Service Pilot,GPC
Statement 18/09/2015 - 19/10/2015,Adults and Communities,CROSS COUNTRY,14/10/2015,21.50,Casual/Essential- General,Passenger Railways,GPC
Statement 18/09/2015 - 19/10/2015,Adults and Communities,CROSS COUNTRY,30/09/2015,26.40,Public Transport -  Staff- General,Passenger Railways,GPC
Statement 18/09/2015 - 19/10/2015,Adults and Communities,CURRYS ONLINE,02/10/2015,448.99,Materials- General,"RADIO, TELEVISION, AND STEREO STORES (ELECTRONIC STORES)",GPC
Statement 18/09/2015 - 19/10/2015,Adults and Communities,CURRYS SUPERSTORE,08/10/2015,83.33,Materials- General,"RADIO, TELEVISION, AND STEREO STORES (ELECTRONIC STORES)",GPC
Statement 18/09/2015 - 19/10/2015,Adults and Communities,DELI FLAVOUR LTD,08/10/2015,103.20,Other Expenditure- General,Fast-Food Restaurants (Quick Payment Service Pilot,GPC
Statement 18/09/2015 - 19/10/2015,Adults and Communities,DUNELM (SOFT FURNISHIN,18/09/2015,49.95,General Equipment- General,"Drapery, Window Coverings, and Upholstery Stores",GPC
Statement 18/09/2015 - 19/10/2015,Adults and Communities,DUNELM (SOFT FURNISHIN,14/10/2015,92.95,Materials- General,"Drapery, Window Coverings, and Upholstery Stores",GPC
Statement 18/09/2015 - 19/10/2015,Adults and Communities,EASTMIDLANDSTRAINS,21/09/2015,10.70,Public Transport -  Staff- General,Passenger Railways,GPC
Statement 18/09/2015 - 19/10/2015,Adults and Communities,EASTMIDLANDSTRAINS,28/09/2015,5.60,Public Transport -  Staff- General,Passenger Railways,GPC
Statement 18/09/2015 - 19/10/2015,Adults and Communities,EASTMIDLANDSTRAINS,24/09/2015,162.00,Subsistence- General,Passenger Railways,GPC
Statement 18/09/2015 - 19/10/2015,Adults and Communities,EASTMIDLANDSTRAINS,28/09/2015,94.50,Training Expenses- General,Passenger Railways,GPC
Statement 18/09/2015 - 19/10/2015,Adults and Communities,EBOX MEDIA LIMITED,29/09/2015,54.97,Materials- General,Home Supply Warehouse,GPC
Statement 18/09/2015 - 19/10/2015,Adults and Communities,ENTERPRISE,18/09/2015,200.00,Casual/Essential- General,Enterprise Rent-A-Car,GPC
Statement 18/09/2015 - 19/10/2015,Adults and Communities,ENTERPRISE,18/09/2015,200.00,Casual/Essential- General,Enterprise Rent-A-Car,GPC
Statement 18/09/2015 - 19/10/2015,Adults and Communities,ENTERPRISE,25/09/2015,-102.82,Casual/Essential- General,Enterprise Rent-A-Car,GPC
Statement 18/09/2015 - 19/10/2015,Adults and Communities,ESPO,24/09/2015,23.88,Stationery- General,Government Services-Not Elsewhere Classified,GPC
Statement 18/09/2015 - 19/10/2015,Adults and Communities,ESPO,13/10/2015,16.50,Stationery- General,Government Services-Not Elsewhere Classified,GPC
Statement 18/09/2015 - 19/10/2015,Adults and Communities,FAST KEY SERVICES,18/09/2015,6.74,General Equipment- General,Business Services-Not Elsewhere Classified,GPC
Statement 18/09/2015 - 19/10/2015,Adults and Communities,FAST KEY SERVICES,21/09/2015,15.02,General Equipment- General,Business Services-Not Elsewhere Classified,GPC
Statement 18/09/2015 - 19/10/2015,Adults and Communities,FAST KEY SERVICES,15/10/2015,16.98,General Equipment- General,Business Services-Not Elsewhere Classified,GPC
Statement 18/09/2015 - 19/10/2015,Adults and Communities,FAST KEY SERVICES,25/09/2015,18.90,Other Equipment & Materials- General,Business Services-Not Elsewhere Classified,GPC
Statement 18/09/2015 - 19/10/2015,Adults and Communities,FCC CONNECT,30/09/2015,3.66,Casual/Essential- General,Automobile Parking Lots and Garages,GPC
Statement 18/09/2015 - 19/10/2015,Adults and Communities,FLOWERS PARADISE,09/10/2015,32.00,Other Expenditure- General,Florists,GPC
Statement 18/09/2015 - 19/10/2015,Adults and Communities,FLOWERS PARADISE,16/10/2015,35.00,Other Expenditure- General,Florists,GPC
Statement 18/09/2015 - 19/10/2015,Adults and Communities,FOREIGN EXCHANGE FEE,09/10/2015,0.02,Printing- General,Misc-Unknown,GPC
Statement 18/09/2015 - 19/10/2015,Adults and Communities,FOREIGN EXCHANGE FEE,02/10/2015,0.36,Stationery- General,Misc-Unknown,GPC
Statement 18/09/2015 - 19/10/2015,Adults and Communities,GRAVELLES,23/09/2015,207.95,General Equipment- General,Laboratory/Medical/Dental/Ophthalmic Hospital Equi,GPC
Statement 18/09/2015 - 19/10/2015,Adults and Communities,HAMPTON BY HILTON,28/09/2015,91.38,Consultants & Specialists- General,Hampton Inn Hotels,GPC
Statement 18/09/2015 - 19/10/2015,Adults and Communities,HARLOW BROS LTD,15/10/2015,80.54,Aids & Adaptations- Minor Adaptations,"Building Materials, Lumber Stores",GPC
Statement 18/09/2015 - 19/10/2015,Adults and Communities,HINCKLEY TOOLBOX,02/10/2015,29.99,Materials- General,Hardware Stores,GPC
Statement 18/09/2015 - 19/10/2015,Adults and Communities,HKS IBSTOCK,13/10/2015,4.00,Materials- General,Service Stations (with or without Ancillary Servic,GPC
Statement 18/09/2015 - 19/10/2015,Adults and Communities,HOME BARGAINS COALVILL,12/10/2015,9.36,Materials- General,Hardware Stores,GPC
Statement 18/09/2015 - 19/10/2015,Adults and Communities,ICELAND,18/09/2015,16.00,Materials- General,"Grocery Stores, Supermarkets",GPC
Statement 18/09/2015 - 19/10/2015,Adults and Communities,ICELAND,21/09/2015,13.00,Materials- General,"Grocery Stores, Supermarkets",GPC
Statement 18/09/2015 - 19/10/2015,Adults and Communities,ICELAND,21/09/2015,2.00,Materials- General,"Grocery Stores, Supermarkets",GPC
Statement 18/09/2015 - 19/10/2015,Adults and Communities,ICELAND,10/10/2015,11.00,Materials- General,"Grocery Stores, Supermarkets",GPC
Statement 18/09/2015 - 19/10/2015,Adults and Communities,ICELAND,15/10/2015,41.54,Materials- General,"Grocery Stores, Supermarkets",GPC
Statement 18/09/2015 - 19/10/2015,Adults and Communities,IKEA,01/10/2015,20.00,Other Equipment & Materials- General,Miscellaneous House Furnishing Specialty Shops,GPC
Statement 18/09/2015 - 19/10/2015,Adults and Communities,IMAGINE PUBLISHING,15/10/2015,41.40,Other Equipment & Materials- General,Business Services-Not Elsewhere Classified,GPC
Statement 18/09/2015 - 19/10/2015,Adults and Communities,IMAGINE PUBLISHING,15/10/2015,41.00,Other Equipment & Materials- General,Business Services-Not Elsewhere Classified,GPC
Statement 18/09/2015 - 19/10/2015,Adults and Communities,JUDGE SAMPSON LTD,30/09/2015,404.64,Materials- General,"Gift, Card, Novelty, and Souvenir Shops",GPC
Statement 18/09/2015 - 19/10/2015,Adults and Communities,LCC CATERING SERVICES,05/10/2015,4.50,Other Expenditure- General,Government Services-Not Elsewhere Classified,GPC
Statement 18/09/2015 - 19/10/2015,Adults and Communities,LEIC CITY COUNCIL,24/09/2015,13.00,Other Expenditure- General,Government Services-Not Elsewhere Classified,GPC
Statement 18/09/2015 - 19/10/2015,Adults and Communities,LEIC CITY COUNCIL,24/09/2015,13.00,Other Expenditure- General,Government Services-Not Elsewhere Classified,GPC
Statement 18/09/2015 - 19/10/2015,Adults and Communities,LEIC CITY COUNCIL,24/09/2015,13.00,Other Expenditure- General,Government Services-Not Elsewhere Classified,GPC
Statement 18/09/2015 - 19/10/2015,Adults and Communities,LEIC CITY COUNCIL,01/10/2015,13.00,Other Expenditure- General,Government Services-Not Elsewhere Classified,GPC
Statement 18/09/2015 - 19/10/2015,Adults and Communities,LEIC CITY COUNCIL,01/10/2015,13.00,Other Expenditure- General,Government Services-Not Elsewhere Classified,GPC
Statement 18/09/2015 - 19/10/2015,Adults and Communities,LEIC CITY COUNCIL,05/10/2015,-10.00,Other Expenditure- General,Government Services-Not Elsewhere Classified,GPC
Statement 18/09/2015 - 19/10/2015,Adults and Communities,LEICESTER MERCURY,13/10/2015,64.23,Newspapers & Periodicals- General,News Dealers and Newsstands,GPC
Statement 18/09/2015 - 19/10/2015,Adults and Communities,LIDL UK,13/10/2015,43.37,Materials- General,"Grocery Stores, Supermarkets",GPC
Statement 18/09/2015 - 19/10/2015,Adults and Communities,LIDL UK,02/10/2015,11.10,Provisions- General,"Grocery Stores, Supermarkets",GPC
Statement 18/09/2015 - 19/10/2015,Adults and Communities,LIDL UK,09/10/2015,12.56,Provisions- General,"Grocery Stores, Supermarkets",GPC
Statement 18/09/2015 - 19/10/2015,Adults and Communities,LIDL UK,12/10/2015,39.41,Provisions- General,"Grocery Stores, Supermarkets",GPC
Statement 18/09/2015 - 19/10/2015,Adults and Communities,LIDL UK,14/10/2015,36.69,Provisions- General,"Grocery Stores, Supermarkets",GPC
Statement 18/09/2015 - 19/10/2015,Adults and Communities,LIDL UK,16/10/2015,67.25,Provisions- General,"Grocery Stores, Supermarkets",GPC
Statement 18/09/2015 - 19/10/2015,Adults and Communities,LIGHTNINGROUTE LIMITED,22/09/2015,25.00,Subsistence- General,"Eating Places, Restaurants",GPC
Statement 18/09/2015 - 19/10/2015,Adults and Communities,LIGHTNINGROUTE LIMITED,29/09/2015,14.90,Subsistence- General,"Eating Places, Restaurants",GPC
Statement 18/09/2015 - 19/10/2015,Adults and Communities,LUL TICKET MACHINE,29/09/2015,12.80,Public Transport -  Staff- General,Passenger Railways,GPC
Statement 18/09/2015 - 19/10/2015,Adults and Communities,MAPLIN-206-LOUGHBOROUGH,05/10/2015,34.99,Materials- General,"RADIO, TELEVISION, AND STEREO STORES (ELECTRONIC STORES)",GPC
Statement 18/09/2015 - 19/10/2015,Adults and Communities,MBC BADGE COMPANY,06/10/2015,160.00,Printing- General,"Gift, Card, Novelty, and Souvenir Shops",GPC
Statement 18/09/2015 - 19/10/2015,Adults and Communities,MBC BADGE COMPANY,06/10/2015,160.00,Printing- General,"Gift, Card, Novelty, and Souvenir Shops",GPC
Statement 18/09/2015 - 19/10/2015,Adults and Communities,MCDONALDS,05/10/2015,4.07,Subsistence- General,Fast-Food Restaurants (Quick Payment Service Pilot,GPC
Statement 18/09/2015 - 19/10/2015,Adults and Communities,MERCURY NEWS,15/10/2015,224.10,Newspapers & Periodicals- General,"Grocery Stores, Supermarkets",GPC
Statement 18/09/2015 - 19/10/2015,Adults and Communities,MERCURY NEWS 63917/453,05/10/2015,132.86,Newspapers & Periodicals- General,"Grocery Stores, Supermarkets",GPC
Statement 18/09/2015 - 19/10/2015,Adults and Communities,MERCURY NEWS 63933,24/09/2015,58.10,Newspapers & Periodicals- General,"Grocery Stores, Supermarkets",GPC
Statement 18/09/2015 - 19/10/2015,Adults and Communities,MOBILITY AND LIFESTYLE,07/10/2015,77.37,Personal Needs of Clients- General,Laboratory/Medical/Dental/Ophthalmic Hospital Equi,GPC
Statement 18/09/2015 - 19/10/2015,Adults and Communities,OCADO LTD.,14/10/2015,61.53,Provisions- General,"Miscellaneous Food Stores-Convenience Stores, Mark",GPC
Statement 18/09/2015 - 19/10/2015,Adults and Communities,OCADO RETAIL LIMIT,18/09/2015,80.79,Provisions- General,"Miscellaneous Food Stores-Convenience Stores, Mark",GPC
Statement 18/09/2015 - 19/10/2015,Adults and Communities,OCADO RETAIL LIMIT,21/09/2015,127.60,Provisions- General,"Miscellaneous Food Stores-Convenience Stores, Mark",GPC
Statement 18/09/2015 - 19/10/2015,Adults and Communities,OCADO RETAIL LIMIT,25/09/2015,113.28,Provisions- General,"Miscellaneous Food Stores-Convenience Stores, Mark",GPC
Statement 18/09/2015 - 19/10/2015,Adults and Communities,OCADO RETAIL LIMIT,28/09/2015,70.89,Provisions- General,"Miscellaneous Food Stores-Convenience Stores, Mark",GPC
Statement 18/09/2015 - 19/10/2015,Adults and Communities,OCADO RETAIL LIMIT,02/10/2015,68.08,Provisions- General,"Miscellaneous Food Stores-Convenience Stores, Mark",GPC
Statement 18/09/2015 - 19/10/2015,Adults and Communities,OCADO RETAIL LIMIT,05/10/2015,91.93,Provisions- General,"Miscellaneous Food Stores-Convenience Stores, Mark",GPC
Statement 18/09/2015 - 19/10/2015,Adults and Communities,OCADO RETAIL LIMIT,10/10/2015,86.08,Provisions- General,"Miscellaneous Food Stores-Convenience Stores, Mark",GPC
Statement 18/09/2015 - 19/10/2015,Adults and Communities,PAYPAL  1066 SALES,28/09/2015,2.49,Other Equipment & Materials- General,Women's Ready to Wear Shoes,GPC
Statement 18/09/2015 - 19/10/2015,Adults and Communities,PAYPAL  BOBBYKIRK,29/09/2015,1.53,Other Equipment & Materials- General,Miscellaneous and Specialty Retail Stores,GPC
Statement 18/09/2015 - 19/10/2015,Adults and Communities,PAYPAL  CAPRILITELI,28/09/2015,4.98,Other Equipment & Materials- General,Children's and Infants' Wear Stores,GPC
Statement 18/09/2015 - 19/10/2015,Adults and Communities,PAYPAL  CHEEKYNIGHT,28/09/2015,2.50,Other Equipment & Materials- General,Variety Stores,GPC
Statement 18/09/2015 - 19/10/2015,Adults and Communities,PAYPAL  CORALP33,23/09/2015,324.95,Display/Conservn/Exhibitions- Exhibitions,Variety Stores,GPC
Statement 18/09/2015 - 19/10/2015,Adults and Communities,PAYPAL  EMMAGAIGER,27/09/2015,1.84,Other Equipment & Materials- General,Miscellaneous and Specialty Retail Stores,GPC
Statement 18/09/2015 - 19/10/2015,Adults and Communities,PAYPAL  FASTKEYSERV,06/10/2015,12.26,Other Expenditure- General,Advertising Services,GPC
Statement 18/09/2015 - 19/10/2015,Adults and Communities,PAYPAL  HISTORICALR,18/09/2015,103.90,Display/Conservn/Exhibitions- Conservation,Miscellaneous and Specialty Retail Stores,GPC
Statement 18/09/2015 - 19/10/2015,Adults and Communities,PAYPAL  INTERESTING,28/09/2015,3.00,Other Equipment & Materials- General,"Artist Supply Stores, Craft Shops",GPC
Statement 18/09/2015 - 19/10/2015,Adults and Communities,PAYPAL  LOCALMOBILI,16/10/2015,30.00,Other Equipment & Materials- General,Chemicals and Allied Products Not Elsewhere Classi,GPC
Statement 18/09/2015 - 19/10/2015,Adults and Communities,PAYPAL  LYNDONSARTG,09/10/2015,20.37,Other Equipment & Materials- General,Variety Stores,GPC
Statement 18/09/2015 - 19/10/2015,Adults and Communities,PAYPAL  READREADING,25/09/2015,180.00,Other Services- General,Charitable and Social Service Organizations,GPC
Statement 18/09/2015 - 19/10/2015,Adults and Communities,PAYPAL  READREADING,29/09/2015,264.00,Other Services- General,Charitable and Social Service Organizations,GPC
Statement 18/09/2015 - 19/10/2015,Adults and Communities,PAYPAL  READREADING,05/10/2015,35.98,Other Services- General,Charitable and Social Service Organizations,GPC
Statement 18/09/2015 - 19/10/2015,Adults and Communities,PAYPAL  SHOPINCLTD,28/09/2015,2.58,Other Equipment & Materials- General,Chemicals and Allied Products Not Elsewhere Classi,GPC
Statement 18/09/2015 - 19/10/2015,Adults and Communities,PAYPAL  STOCKBRIDGE,28/09/2015,4.13,Other Equipment & Materials- General,Family Clothing Stores,GPC
Statement 18/09/2015 - 19/10/2015,Adults and Communities,PAYPAL  SUSANSELBY1,26/09/2015,192.00,Display/Conservn/Exhibitions- Exhibitions,Miscellaneous and Specialty Retail Stores,GPC
Statement 18/09/2015 - 19/10/2015,Adults and Communities,PAYPAL  TATTYARIEL,17/09/2015,300.00,Display/Conservn/Exhibitions- Exhibitions,Professional Services-Not Elsewhere Classified,GPC
Statement 18/09/2015 - 19/10/2015,Adults and Communities,PAYPAL  THEWOODHEAD,28/09/2015,3.25,Other Equipment & Materials- General,Miscellaneous and Specialty Retail Stores,GPC
Statement 18/09/2015 - 19/10/2015,Adults and Communities,PAYPAL  UKOFFICEDIR,15/10/2015,101.75,Stationery- General,"Stationery, Office, and School Supply Stores",GPC
Statement 18/09/2015 - 19/10/2015,Adults and Communities,POST OFFICE COUNTER,14/10/2015,7.70,Fees & Charges (845)- Retail,Postage Stamps,GPC
Statement 18/09/2015 - 19/10/2015,Adults and Communities,POST OFFICE COUNTER,29/09/2015,4.40,Postal Services- General,Postage Stamps,GPC
Statement 18/09/2015 - 19/10/2015,Adults and Communities,POST OFFICE COUNTER,30/09/2015,9.92,Postal Services- General,Postage Stamps,GPC
Statement 18/09/2015 - 19/10/2015,Adults and Communities,POST OFFICE COUNTER,08/10/2015,63.00,Postal Services- General,Postage Stamps,GPC
Statement 18/09/2015 - 19/10/2015,Adults and Communities,POUNDLAND LTD 1142,01/10/2015,2.00,Materials- General,Discount Stores,GPC
Statement 18/09/2015 - 19/10/2015,Adults and Communities,PREMIER INN44529750,17/10/2015,-15.50,Subsistence- General,PREMIER TRAVEL,GPC
Statement 18/09/2015 - 19/10/2015,Adults and Communities,PREMIER MOBILITY (UK),18/09/2015,29.96,General Equipment- General,Laboratory/Medical/Dental/Ophthalmic Hospital Equi,GPC
Statement 18/09/2015 - 19/10/2015,Adults and Communities,QUEENSGATE,14/10/2015,5.00,Casual/Essential- General,Automobile Parking Lots and Garages,GPC
Statement 18/09/2015 - 19/10/2015,Adults and Communities,RYMAN,23/09/2015,6.66,Stationery- General,"Stationery, Office, and School Supply Stores",GPC
Statement 18/09/2015 - 19/10/2015,Adults and Communities,RYMAN,06/10/2015,12.13,Stationery- General,"Stationery, Office, and School Supply Stores",GPC
Statement 18/09/2015 - 19/10/2015,Adults and Communities,SAINSBURYS LOCAL,17/09/2015,4.00,Provisions- General,"Grocery Stores, Supermarkets",GPC
Statement 18/09/2015 - 19/10/2015,Adults and Communities,SAINSBURYS LOCAL,17/09/2015,7.75,Provisions- General,"Grocery Stores, Supermarkets",GPC
Statement 18/09/2015 - 19/10/2015,Adults and Communities,SAINSBURY'S S/MKT,07/10/2015,19.28,Provisions- General,"Grocery Stores, Supermarkets",GPC
Statement 18/09/2015 - 19/10/2015,Adults and Communities,SAINSBURY'S S/MKT,09/10/2015,48.44,Provisions- General,"Grocery Stores, Supermarkets",GPC
Statement 18/09/2015 - 19/10/2015,Adults and Communities,Sainsburys S/mkts,17/09/2015,4.80,Materials- General,"Grocery Stores, Supermarkets",GPC
Statement 18/09/2015 - 19/10/2015,Adults and Communities,Sainsburys S/mkts,01/10/2015,9.60,Materials- General,"Grocery Stores, Supermarkets",GPC
Statement 18/09/2015 - 19/10/2015,Adults and Communities,SAINSBURYS S/MKTS,24/09/2015,8.00,Stationery- General,"Grocery Stores, Supermarkets",GPC
Statement 18/09/2015 - 19/10/2015,Adults and Communities,SAINSBURYS S/MKTS,06/10/2015,20.15,Stationery- General,"Grocery Stores, Supermarkets",GPC
Statement 18/09/2015 - 19/10/2015,Adults and Communities,SCREWFIX,07/10/2015,32.09,Aids & Adaptations- Minor Adaptations,"Building Materials, Lumber Stores",GPC
Statement 18/09/2015 - 19/10/2015,Adults and Communities,SCREWFIX,14/10/2015,39.96,General Equipment- General,"Building Materials, Lumber Stores",GPC
Statement 18/09/2015 - 19/10/2015,Adults and Communities,SCREWFIX DIRECT,26/09/2015,12.74,Operational Equipment- General,"Building Materials, Lumber Stores",GPC
Statement 18/09/2015 - 19/10/2015,Adults and Communities,SGM LIFEWORDS,29/09/2015,50.00,Schools Agency staff- Support Staff,Charitable and Social Service Organizations,GPC
Statement 18/09/2015 - 19/10/2015,Adults and Communities,SPARES SUPPLY COMPANY,14/10/2015,11.66,General Equipment- General,Electrical Parts and Equipment,GPC
Statement 18/09/2015 - 19/10/2015,Adults and Communities,SPORTSDIRECT 710,14/10/2015,13.99,Other Equipment & Materials- General,Sporting Goods Stores,GPC
Statement 18/09/2015 - 19/10/2015,Adults and Communities,STAPLES UK,01/10/2015,5.32,Materials- General,"Stationery, Office, and School Supply Stores",GPC
Statement 18/09/2015 - 19/10/2015,Adults and Communities,STAPLES UK,23/09/2015,83.32,Stationery- General,"Stationery, Office, and School Supply Stores",GPC
Statement 18/09/2015 - 19/10/2015,Adults and Communities,SURVEYMONKEY.COM,12/10/2015,21.67,Publicity/Marketing- General,Computer Network/Information Services,GPC
Statement 18/09/2015 - 19/10/2015,Adults and Communities,TALKTALK BUSINESS,21/09/2015,199.65,Telephones- General,Telecommunication Service Including Local and Long,GPC
Statement 18/09/2015 - 19/10/2015,Adults and Communities,TESCO STORES 5182,28/09/2015,1.00,Materials- General,"Grocery Stores, Supermarkets",GPC
Statement 18/09/2015 - 19/10/2015,Adults and Communities,TESCO STORES 5182,18/09/2015,205.08,Provisions- General,"Grocery Stores, Supermarkets",GPC
Statement 18/09/2015 - 19/10/2015,Adults and Communities,TESCO STORES 5182,21/09/2015,136.78,Provisions- General,"Grocery Stores, Supermarkets",GPC
Statement 18/09/2015 - 19/10/2015,Adults and Communities,TESCO STORES 5182,25/09/2015,156.94,Provisions- General,"Grocery Stores, Supermarkets",GPC
Statement 18/09/2015 - 19/10/2015,Adults and Communities,TESCO STORES 5182,28/09/2015,178.14,Provisions- General,"Grocery Stores, Supermarkets",GPC
Statement 18/09/2015 - 19/10/2015,Adults and Communities,TESCO STORES 5182,01/10/2015,117.32,Provisions- General,"Grocery Stores, Supermarkets",GPC
Statement 18/09/2015 - 19/10/2015,Adults and Communities,TESCO STORES 5182,05/10/2015,82.75,Provisions- General,"Grocery Stores, Supermarkets",GPC
Statement 18/09/2015 - 19/10/2015,Adults and Communities,TESCO STORES 5182,09/10/2015,169.50,Provisions- General,"Grocery Stores, Supermarkets",GPC
Statement 18/09/2015 - 19/10/2015,Adults and Communities,TESCO STORES 5182,12/10/2015,172.44,Provisions- General,"Grocery Stores, Supermarkets",GPC
Statement 18/09/2015 - 19/10/2015,Adults and Communities,TESCO STORES 6816,22/09/2015,13.10,Materials- General,"Grocery Stores, Supermarkets",GPC
Statement 18/09/2015 - 19/10/2015,Adults and Communities,TESCO-STORES 2846,17/09/2015,8.25,Materials- General,"Grocery Stores, Supermarkets",GPC
Statement 18/09/2015 - 19/10/2015,Adults and Communities,THE BOOK PEOPLE,08/10/2015,204.79,Books- General,Book Stores,GPC
Statement 18/09/2015 - 19/10/2015,Adults and Communities,THE POST OFFICE,01/10/2015,1.26,Postal Services- General,Postage Stamps,GPC
Statement 18/09/2015 - 19/10/2015,Adults and Communities,THE RANGE,12/10/2015,78.98,Materials- General,Department Stores,GPC
Statement 18/09/2015 - 19/10/2015,Adults and Communities,THE RANGE,12/10/2015,51.04,Materials- General,Department Stores,GPC
Statement 18/09/2015 - 19/10/2015,Adults and Communities,THURSTON ELECTRICAL SUPP,13/10/2015,91.50,Other Expenditure- General,Electrical Contractors,GPC
Statement 18/09/2015 - 19/10/2015,Adults and Communities,TIMPSON LTD,02/10/2015,33.33,General Equipment- General,"Shoe Repair Shops, Shoe Shine Parlors, Hat Cleanin",GPC
Statement 18/09/2015 - 19/10/2015,Adults and Communities,TP COALVILLE,16/10/2015,2.90,Aids & Adaptations- Minor Adaptations,"Building Materials, Lumber Stores",GPC
Statement 18/09/2015 - 19/10/2015,Adults and Communities,TRAINLINE,30/09/2015,20.96,Casual/Essential- General,Passenger Railways,GPC
Statement 18/09/2015 - 19/10/2015,Adults and Communities,TRAINLINE,01/10/2015,321.81,Casual/Essential- General,Passenger Railways,GPC
Statement 18/09/2015 - 19/10/2015,Adults and Communities,TRAINLINE,02/10/2015,83.13,Casual/Essential- General,Passenger Railways,GPC
Statement 18/09/2015 - 19/10/2015,Adults and Communities,TRAINLINE,16/10/2015,105.57,Casual/Essential- General,Passenger Railways,GPC
Statement 18/09/2015 - 19/10/2015,Adults and Communities,TRAINLINE,21/09/2015,130.56,Public Transport -  Staff- General,Passenger Railways,GPC
Statement 18/09/2015 - 19/10/2015,Adults and Communities,TRAINLINE,23/09/2015,14.33,Public Transport -  Staff- General,Passenger Railways,GPC
Statement 18/09/2015 - 19/10/2015,Adults and Communities,TRAINLINE,06/10/2015,12.49,Public Transport -  Staff- General,Passenger Railways,GPC
Statement 18/09/2015 - 19/10/2015,Adults and Communities,TRAINLINE,08/10/2015,27.69,Public Transport -  Staff- General,Passenger Railways,GPC
Statement 18/09/2015 - 19/10/2015,Adults and Communities,TRAINLINE,09/10/2015,21.06,Public Transport -  Staff- General,Passenger Railways,GPC
Statement 18/09/2015 - 19/10/2015,Adults and Communities,TRAINLINE,16/10/2015,60.18,Public Transport -  Staff- General,Passenger Railways,GPC
Statement 18/09/2015 - 19/10/2015,Adults and Communities,TRINITY COURT POTTERIE,15/10/2015,45.00,Educational Visits- General,"Artist Supply Stores, Craft Shops",GPC
Statement 18/09/2015 - 19/10/2015,Adults and Communities,TSGN,30/09/2015,34.00,Casual/Essential- General,Passenger Railways,GPC
Statement 18/09/2015 - 19/10/2015,Adults and Communities,TUDDIES CONVENIENCE ST,20/09/2015,4.90,Provisions- General,"Miscellaneous Food Stores-Convenience Stores, Mark",GPC
Statement 18/09/2015 - 19/10/2015,Adults and Communities,VIRGINTRAINSEC SERVCS,24/09/2015,34.00,Casual/Essential- General,Passenger Railways,GPC
Statement 18/09/2015 - 19/10/2015,Adults and Communities,W M MORRISONS CAFE,22/09/2015,5.00,Subsistence- General,"Eating Places, Restaurants",GPC
Statement 18/09/2015 - 19/10/2015,Adults and Communities,WELL 200702,28/09/2015,9.45,Other Equipment & Materials- General,"Drug Stores, Pharmacies",GPC
Statement 18/09/2015 - 19/10/2015,Adults and Communities,WICKES HINCKLEY,13/10/2015,4.82,General Equipment- General,"Building Materials, Lumber Stores",GPC
Statement 18/09/2015 - 19/10/2015,Adults and Communities,WICKES HINCKLEY,13/10/2015,6.97,General Equipment- General,"Building Materials, Lumber Stores",GPC
Statement 18/09/2015 - 19/10/2015,Adults and Communities,WILKO RETAIL LIMIT,17/09/2015,73.20,Materials- General,Household Appliance Stores,GPC
Statement 18/09/2015 - 19/10/2015,Adults and Communities,WILKO RETAIL LIMIT,23/09/2015,37.19,Materials- General,Household Appliance Stores,GPC
Statement 18/09/2015 - 19/10/2015,Adults and Communities,WILKO RETAIL LIMIT,23/09/2015,18.75,Materials- General,Household Appliance Stores,GPC
Statement 18/09/2015 - 19/10/2015,Adults and Communities,WILKO RETAIL LIMIT,30/09/2015,16.75,Materials- General,Household Appliance Stores,GPC
Statement 18/09/2015 - 19/10/2015,Adults and Communities,WILKO RETAIL LIMIT,23/09/2015,0.80,Provisions- General,Household Appliance Stores,GPC
Statement 18/09/2015 - 19/10/2015,Adults and Communities,WM MORRISON 054,19/09/2015,4.43,Materials- General,"Grocery Stores, Supermarkets",GPC
Statement 18/09/2015 - 19/10/2015,Adults and Communities,WM MORRISON 054,20/09/2015,31.36,Materials- General,"Grocery Stores, Supermarkets",GPC
Statement 18/09/2015 - 19/10/2015,Adults and Communities,WM MORRISON 054,22/09/2015,34.52,Materials- General,"Grocery Stores, Supermarkets",GPC
Statement 18/09/2015 - 19/10/2015,Adults and Communities,WM MORRISON 054,22/09/2015,13.33,Materials- General,"Grocery Stores, Supermarkets",GPC
Statement 18/09/2015 - 19/10/2015,Adults and Communities,WM MORRISON 054,22/09/2015,42.02,Materials- General,"Grocery Stores, Supermarkets",GPC
Statement 18/09/2015 - 19/10/2015,Adults and Communities,WM MORRISON 054,25/09/2015,164.95,Materials- General,"Grocery Stores, Supermarkets",GPC
Statement 18/09/2015 - 19/10/2015,Adults and Communities,WM MORRISON 054,30/09/2015,147.50,Materials- General,"Grocery Stores, Supermarkets",GPC
Statement 18/09/2015 - 19/10/2015,Adults and Communities,WM MORRISON 054,03/10/2015,161.82,Materials- General,"Grocery Stores, Supermarkets",GPC
Statement 18/09/2015 - 19/10/2015,Adults and Communities,WM MORRISON 054,03/10/2015,12.40,Materials- General,"Grocery Stores, Supermarkets",GPC
Statement 18/09/2015 - 19/10/2015,Adults and Communities,WM MORRISON 054,08/10/2015,161.14,Materials- General,"Grocery Stores, Supermarkets",GPC
Statement 18/09/2015 - 19/10/2015,Adults and Communities,WM MORRISON 054,15/10/2015,131.33,Materials- General,"Grocery Stores, Supermarkets",GPC
Statement 18/09/2015 - 19/10/2015,Adults and Communities,WM MORRISON 054,15/10/2015,130.56,Materials- General,"Grocery Stores, Supermarkets",GPC
Statement 18/09/2015 - 19/10/2015,Adults and Communities,WM MORRISONS,19/09/2015,204.40,Materials- General,"Grocery Stores, Supermarkets",GPC
Statement 18/09/2015 - 19/10/2015,Adults and Communities,WM MORRISONS,22/09/2015,30.31,Materials- General,"Grocery Stores, Supermarkets",GPC
Statement 18/09/2015 - 19/10/2015,Adults and Communities,WM MORRISONS,23/09/2015,10.50,Provisions- General,"Grocery Stores, Supermarkets",GPC
Statement 18/09/2015 - 19/10/2015,Adults and Communities,WM MORRISONS,14/10/2015,4.00,Provisions- General,"Grocery Stores, Supermarkets",GPC
Statement 18/09/2015 - 19/10/2015,Adults and Communities,WOLLATON HALL SHOP,05/10/2015,450.00,Display/Conservn/Exhibitions- Exhibitions,Government Services-Not Elsewhere Classified,GPC
Statement 18/09/2015 - 19/10/2015,Adults and Communities,WP-WARWICKSHIRE CO,05/10/2015,10.63,Other Expenditure- General,Government Services-Not Elsewhere Classified,GPC
Statement 18/09/2015 - 19/10/2015,Adults and Communities,WWW.CONNEVANS.COM,09/10/2015,26.65,Other Services- General,Miscellaneous and Specialty Retail Stores,GPC
Statement 18/09/2015 - 19/10/2015,Adults and Communities,WWW.DVLA.GOV.UK,12/10/2015,227.50,Road Licences- General,Government Services-Not Elsewhere Classified,GPC
Statement 18/09/2015 - 19/10/2015,Adults and Communities,WWW.FUSSFREESALES.CO.U,12/10/2015,242.03,Display/Conservn/Exhibitions- Exhibitions,"Stationery, Office, and School Supply Stores",GPC
Statement 18/09/2015 - 19/10/2015,Adults and Communities,WWW.GALATA.CO.UK,06/10/2015,31.00,Display/Conservn/Exhibitions- Displays/Field Research,Antique Reproduction Stores,GPC
Statement 18/09/2015 - 19/10/2015,Adults and Communities,WWW.GOLEICESTERSHIRE.C,15/10/2015,318.00,Other Services- General,Travel Agencies,GPC
Statement 18/09/2015 - 19/10/2015,Adults and Communities,WWW.HENLEYSMED.COM,15/10/2015,8.16,Other Services- General,Laboratory/Medical/Dental/Ophthalmic Hospital Equi,GPC
Statement 18/09/2015 - 19/10/2015,Adults and Communities,WWW.INDS.CO.UK,03/10/2015,23.00,Other Equipment & Materials- General,Commercial Equipment Not Elsewhere Classified,GPC
Statement 18/09/2015 - 19/10/2015,Adults and Communities,WWW.INDS.CO.UK,07/10/2015,-12.00,Other Equipment & Materials- General,Commercial Equipment Not Elsewhere Classified,GPC
Statement 18/09/2015 - 19/10/2015,Adults and Communities,WWW.IRONMONGERYDIRECT.,29/09/2015,25.74,General Equipment- General,"Glass, Paint, Wallpaper Stores",GPC
Statement 18/09/2015 - 19/10/2015,Adults and Communities,WWW.JUSTGLOVES.CO.UK,28/09/2015,23.82,Materials- General,Miscellaneous and Specialty Retail Stores,GPC
Statement 18/09/2015 - 19/10/2015,Adults and Communities,WWW.KHADI.COM,17/09/2015,7.08,Other Equipment & Materials- General,"Stationery, Office, and School Supply Stores",GPC
Statement 18/09/2015 - 19/10/2015,Adults and Communities,WWW.NEOPOST.CO.UK,28/09/2015,463.50,Stationery- General,"Stationary, Office Supplies, Printing and Writing",GPC
Statement 18/09/2015 - 19/10/2015,Adults and Communities,WWW.ROYALMAIL.COM,29/09/2015,64.33,Postal Services- General,Postage Stamps,GPC
Statement 18/09/2015 - 19/10/2015,Adults and Communities,WWW.ROYALMAIL.COM,12/10/2015,108.00,Postal Services- General,Postage Stamps,GPC
Statement 18/09/2015 - 19/10/2015,Adults and Communities,WWW.VIKING-DIRECT.CO.U,30/09/2015,3.29,Stationery- General,"Stationary, Office Supplies, Printing and Writing",GPC
Statement 18/09/2015 - 19/10/2015,Adults and Communities,WWW.ZEN.CO.UK,30/09/2015,34.76,Telephones- General,Computer Network/Information Services,GPC
Statement 18/09/2015 - 19/10/2015,C&YPS-Non Delegated,ALDI,08/10/2015,8.95,Materials- General,"Grocery Stores, Supermarkets",GPC
Statement 18/09/2015 - 19/10/2015,C&YPS-Non Delegated,ALDI,22/09/2015,96.85,Provisions- General,"Grocery Stores, Supermarkets",GPC
Statement 18/09/2015 - 19/10/2015,C&YPS-Non Delegated,ALDI,30/09/2015,7.57,Provisions- General,"Grocery Stores, Supermarkets",GPC
Statement 18/09/2015 - 19/10/2015,C&YPS-Non Delegated,ALDI,09/10/2015,46.20,Provisions- General,"Grocery Stores, Supermarkets",GPC
Statement 18/09/2015 - 19/10/2015,C&YPS-Non Delegated,ALDI,12/10/2015,78.19,Provisions- General,"Grocery Stores, Supermarkets",GPC
Statement 18/09/2015 - 19/10/2015,C&YPS-Non Delegated,ALTON TOWERS PARK,14/10/2015,403.00,Other Expenditure- General,"Amusement Parks, Circuses, Carnivals, Fortune Tell",GPC
Statement 18/09/2015 - 19/10/2015,C&YPS-Non Delegated,ALTON TOWERS PARK,16/10/2015,46.50,Other Expenditure- General,"Amusement Parks, Circuses, Carnivals, Fortune Tell",GPC
Statement 18/09/2015 - 19/10/2015,C&YPS-Non Delegated,Amazon Svcs Europe SAR,06/10/2015,16.85,Books- General,Book Stores,GPC
Statement 18/09/2015 - 19/10/2015,C&YPS-Non Delegated,Amazon UK Marketplace,02/10/2015,16.77,Books- General,Miscellaneous and Specialty Retail Stores,GPC
Statement 18/09/2015 - 19/10/2015,C&YPS-Non Delegated,Amazon UK Marketplace,23/09/2015,49.99,Casual/Essential- General,Miscellaneous and Specialty Retail Stores,GPC
Statement 18/09/2015 - 19/10/2015,C&YPS-Non Delegated,Amazon UK Marketplace,18/09/2015,4.47,Materials- General,Miscellaneous and Specialty Retail Stores,GPC
Statement 18/09/2015 - 19/10/2015,C&YPS-Non Delegated,Amazon UK Marketplace,19/09/2015,18.35,Materials- General,Miscellaneous and Specialty Retail Stores,GPC
Statement 18/09/2015 - 19/10/2015,C&YPS-Non Delegated,Amazon UK Marketplace,24/09/2015,9.93,Materials- General,Miscellaneous and Specialty Retail Stores,GPC
Statement 18/09/2015 - 19/10/2015,C&YPS-Non Delegated,Amazon UK Marketplace,02/10/2015,48.99,Materials- General,Miscellaneous and Specialty Retail Stores,GPC
Statement 18/09/2015 - 19/10/2015,C&YPS-Non Delegated,Amazon UK Marketplace,30/09/2015,18.42,Other Equipment & Materials- General,Miscellaneous and Specialty Retail Stores,GPC
Statement 18/09/2015 - 19/10/2015,C&YPS-Non Delegated,Amazon UK Marketplace,24/09/2015,2.48,Other Transfer Payments- Section 24,Miscellaneous and Specialty Retail Stores,GPC
Statement 18/09/2015 - 19/10/2015,C&YPS-Non Delegated,Amazon UK Marketplace,02/10/2015,8.90,Stationery- General,Miscellaneous and Specialty Retail Stores,GPC
Statement 18/09/2015 - 19/10/2015,C&YPS-Non Delegated,Amazon UK Marketplace,15/10/2015,38.00,Stationery- General,Miscellaneous and Specialty Retail Stores,GPC
Statement 18/09/2015 - 19/10/2015,C&YPS-Non Delegated,Amazon UK Retail,15/10/2015,35.74,Casual/Essential- General,Direct Marketers - Other,GPC
Statement 18/09/2015 - 19/10/2015,C&YPS-Non Delegated,Amazon UK Retail,14/10/2015,37.86,General Equipment- General,Direct Marketers - Other,GPC
Statement 18/09/2015 - 19/10/2015,C&YPS-Non Delegated,Amazon UK Retail,19/09/2015,32.94,Other Equipment & Materials- General,Direct Marketers - Other,GPC
Statement 18/09/2015 - 19/10/2015,C&YPS-Non Delegated,Amazon UK Retail,06/10/2015,31.17,Other Equipment & Materials- General,Direct Marketers - Other,GPC
Statement 18/09/2015 - 19/10/2015,C&YPS-Non Delegated,Amazon UK Retail,17/10/2015,10.69,Other Equipment & Materials- General,Direct Marketers - Other,GPC
Statement 18/09/2015 - 19/10/2015,C&YPS-Non Delegated,AmazonLocal,04/10/2015,15.00,Other Equipment & Materials- General,Miscellaneous and Specialty Retail Stores,GPC
Statement 18/09/2015 - 19/10/2015,C&YPS-Non Delegated,AMFBOWLING.CO.UK,16/10/2015,22.86,Public Transport -  Staff- General,Bowling Alleys,GPC
Statement 18/09/2015 - 19/10/2015,C&YPS-Non Delegated,AO RETAIL LIMITED,12/10/2015,218.29,Other Equipment & Materials- General,Household Appliance Stores,GPC
Statement 18/09/2015 - 19/10/2015,C&YPS-Non Delegated,ARGOS LTD,23/09/2015,255.53,Materials- General,Discount Stores,GPC
Statement 18/09/2015 - 19/10/2015,C&YPS-Non Delegated,ARGOS LTD,28/09/2015,28.49,Materials- General,Discount Stores,GPC
Statement 18/09/2015 - 19/10/2015,C&YPS-Non Delegated,ARGOS LTD,15/10/2015,62.81,Materials- General,Discount Stores,GPC
Statement 18/09/2015 - 19/10/2015,C&YPS-Non Delegated,ARGOS LTD,16/10/2015,19.99,Materials- General,Discount Stores,GPC
Statement 18/09/2015 - 19/10/2015,C&YPS-Non Delegated,ARGOS RETAIL GROUP,14/10/2015,42.98,Materials- General,Discount Stores,GPC
Statement 18/09/2015 - 19/10/2015,C&YPS-Non Delegated,ARGOS RETAIL GROUP,15/10/2015,249.99,Materials- General,Discount Stores,GPC
Statement 18/09/2015 - 19/10/2015,C&YPS-Non Delegated,ARGOS RETAIL GROUP,16/10/2015,159.99,Materials- General,Discount Stores,GPC
Statement 18/09/2015 - 19/10/2015,C&YPS-Non Delegated,ARGOS RETAIL GROUP,30/09/2015,163.93,Other Equipment & Materials- General,Discount Stores,GPC
Statement 18/09/2015 - 19/10/2015,C&YPS-Non Delegated,ARGOS RETAIL GROUP,07/10/2015,68.92,Other Equipment & Materials- General,Discount Stores,GPC
Statement 18/09/2015 - 19/10/2015,C&YPS-Non Delegated,ARGOS RETAIL GROUP,14/10/2015,33.33,Provisions- General,Discount Stores,GPC
Statement 18/09/2015 - 19/10/2015,C&YPS-Non Delegated,ARGOS RETAIL GROUP,14/10/2015,59.77,Provisions- General,Discount Stores,GPC
Statement 18/09/2015 - 19/10/2015,C&YPS-Non Delegated,ASDA HOME SHOPPING,12/10/2015,29.36,Other Expenditure- General,"Grocery Stores, Supermarkets",GPC
Statement 18/09/2015 - 19/10/2015,C&YPS-Non Delegated,ASDA HOME SHOPPING,12/10/2015,1.26,Other Expenditure- General,"Grocery Stores, Supermarkets",GPC
Statement 18/09/2015 - 19/10/2015,C&YPS-Non Delegated,ASDA HOME SHOPPING,14/10/2015,27.94,Other Expenditure- General,"Grocery Stores, Supermarkets",GPC
Statement 18/09/2015 - 19/10/2015,C&YPS-Non Delegated,ASDA HOME SHOPPING,14/10/2015,0.40,Other Expenditure- General,"Grocery Stores, Supermarkets",GPC
Statement 18/09/2015 - 19/10/2015,C&YPS-Non Delegated,ASDA SUPERSTORE,21/09/2015,7.02,Materials- General,"Grocery Stores, Supermarkets",GPC
Statement 18/09/2015 - 19/10/2015,C&YPS-Non Delegated,ASDA SUPERSTORE,22/09/2015,128.43,Provisions- General,"Grocery Stores, Supermarkets",GPC
Statement 18/09/2015 - 19/10/2015,C&YPS-Non Delegated,ASDA SUPERSTORE,30/09/2015,170.49,Provisions- General,"Grocery Stores, Supermarkets",GPC
Statement 18/09/2015 - 19/10/2015,C&YPS-Non Delegated,ASDA SUPERSTORE,07/10/2015,15.06,Provisions- General,"Grocery Stores, Supermarkets",GPC
Statement 18/09/2015 - 19/10/2015,C&YPS-Non Delegated,ASDA SUPERSTORE,07/10/2015,63.98,Provisions- General,"Grocery Stores, Supermarkets",GPC
Statement 18/09/2015 - 19/10/2015,C&YPS-Non Delegated,ASDA SUPERSTORE,12/10/2015,146.67,Provisions- General,"Grocery Stores, Supermarkets",GPC
Statement 18/09/2015 - 19/10/2015,C&YPS-Non Delegated,B & Q,25/09/2015,33.34,Provisions- General,"Building Materials, Lumber Stores",GPC
Statement 18/09/2015 - 19/10/2015,C&YPS-Non Delegated,B&M Retail,01/10/2015,37.75,Cleaning Materials- General,Discount Stores,GPC
Statement 18/09/2015 - 19/10/2015,C&YPS-Non Delegated,B&M RETAIL,03/10/2015,7.47,Materials- General,Discount Stores,GPC
Statement 18/09/2015 - 19/10/2015,C&YPS-Non Delegated,B&M RETAIL,09/10/2015,176.52,Materials- General,Discount Stores,GPC
Statement 18/09/2015 - 19/10/2015,C&YPS-Non Delegated,B&M RETAIL,14/10/2015,27.99,Other Equipment & Materials- General,Discount Stores,GPC
Statement 18/09/2015 - 19/10/2015,C&YPS-Non Delegated,BDADYSLEXIA,09/10/2015,57.00,Other Services- General,Charitable and Social Service Organizations,GPC
Statement 18/09/2015 - 19/10/2015,C&YPS-Non Delegated,BRUCE TAXIS LTD,28/09/2015,28.00,Casual/Essential- General,Taxicabs and Limousines,GPC
Statement 18/09/2015 - 19/10/2015,C&YPS-Non Delegated,BT BILL PAYMENT 1,21/09/2015,131.75,IT Equipment- Rental,Telecommunication Equipment Including Telephone Sa,GPC
Statement 18/09/2015 - 19/10/2015,C&YPS-Non Delegated,BT BILL PAYMENT 1,21/09/2015,96.97,Telephones- General,Telecommunication Equipment Including Telephone Sa,GPC
Statement 18/09/2015 - 19/10/2015,C&YPS-Non Delegated,BT BILL PAYMENT 1,22/09/2015,64.00,Telephones- General,Telecommunication Equipment Including Telephone Sa,GPC
Statement 18/09/2015 - 19/10/2015,C&YPS-Non Delegated,BT BILL PAYMENT 1,22/09/2015,96.00,Telephones- General,Telecommunication Equipment Including Telephone Sa,GPC
Statement 18/09/2015 - 19/10/2015,C&YPS-Non Delegated,BT BILL PAYMENT 1,13/10/2015,63.00,Telephones- General,Telecommunication Equipment Including Telephone Sa,GPC
Statement 18/09/2015 - 19/10/2015,C&YPS-Non Delegated,BT PAY BY PHONE,21/09/2015,54.92,Telephones- General,Telecommunication Service Including Local and Long,GPC
Statement 18/09/2015 - 19/10/2015,C&YPS-Non Delegated,BT PAY BY PHONE,22/09/2015,74.13,Telephones- General,Telecommunication Service Including Local and Long,GPC
Statement 18/09/2015 - 19/10/2015,C&YPS-Non Delegated,BT PAY BY PHONE,22/09/2015,51.99,Telephones- General,Telecommunication Service Including Local and Long,GPC
Statement 18/09/2015 - 19/10/2015,C&YPS-Non Delegated,BURY MBC /INTERNET,21/09/2015,11.00,Other Expenditure- General,Government Services-Not Elsewhere Classified,GPC
Statement 18/09/2015 - 19/10/2015,C&YPS-Non Delegated,CAFFE NERO,05/10/2015,6.70,Subsistence- General,"Eating Places, Restaurants",GPC
Statement 18/09/2015 - 19/10/2015,C&YPS-Non Delegated,CARGO HOME STORE,13/10/2015,8.00,Other Equipment & Materials- General,"Furniture, Home Furnishings and Equipment Stores,",GPC
Statement 18/09/2015 - 19/10/2015,C&YPS-Non Delegated,CENTERPLATE UK LTD,23/09/2015,4.80,Subsistence- General,Caterers,GPC
Statement 18/09/2015 - 19/10/2015,C&YPS-Non Delegated,CENTRAL ENG COOP,22/09/2015,10.26,Materials- General,Department Stores,GPC
Statement 18/09/2015 - 19/10/2015,C&YPS-Non Delegated,CENTRAL ENG COOP,17/09/2015,10.69,Other Equipment & Materials- General,Department Stores,GPC
Statement 18/09/2015 - 19/10/2015,C&YPS-Non Delegated,CENTRAL ENG COOP,22/09/2015,42.92,Other Equipment & Materials- General,Department Stores,GPC
Statement 18/09/2015 - 19/10/2015,C&YPS-Non Delegated,CENTRAL ENG COOP,23/09/2015,6.04,Other Equipment & Materials- General,Department Stores,GPC
Statement 18/09/2015 - 19/10/2015,C&YPS-Non Delegated,CENTRAL ENG COOP,24/09/2015,11.47,Other Equipment & Materials- General,Department Stores,GPC
Statement 18/09/2015 - 19/10/2015,C&YPS-Non Delegated,CENTRAL ENG COOP,08/10/2015,1.79,Other Equipment & Materials- General,Department Stores,GPC
Statement 18/09/2015 - 19/10/2015,C&YPS-Non Delegated,CENTRAL ENG COOP,15/10/2015,14.60,Other Equipment & Materials- General,Department Stores,GPC
Statement 18/09/2015 - 19/10/2015,C&YPS-Non Delegated,CENTRAL ENG COOP,29/09/2015,3.34,Subsistence- General,Department Stores,GPC
Statement 18/09/2015 - 19/10/2015,C&YPS-Non Delegated,CENTRAL ENG COOP,30/09/2015,8.22,Subsistence- General,Department Stores,GPC
Statement 18/09/2015 - 19/10/2015,C&YPS-Non Delegated,CENTRAL ENG COOP,14/10/2015,30.90,Subsistence- General,Department Stores,GPC
Statement 18/09/2015 - 19/10/2015,C&YPS-Non Delegated,CLEDDAU BRIDGE HOTEL,07/10/2015,80.00,Other Transfer Payments- Section 24,"Lodging-Hotels, Motels, Resorts",GPC
Statement 18/09/2015 - 19/10/2015,C&YPS-Non Delegated,CO-OP GROUP 011831,21/09/2015,7.01,Other Equipment & Materials- General,"Grocery Stores, Supermarkets",GPC
Statement 18/09/2015 - 19/10/2015,C&YPS-Non Delegated,COSTA COFFEE,18/09/2015,5.20,Subsistence- General,"Eating Places, Restaurants",GPC
Statement 18/09/2015 - 19/10/2015,C&YPS-Non Delegated,COVENTRY CITY COUNCIL,21/09/2015,10.00,Public Transport -  Staff- General,RECREATION SERVICES--NOT ELSEWHERE CLASSIFIED,GPC
Statement 18/09/2015 - 19/10/2015,C&YPS-Non Delegated,CROSS COUNTRY,28/09/2015,18.40,Casual/Essential- General,Passenger Railways,GPC
Statement 18/09/2015 - 19/10/2015,C&YPS-Non Delegated,CROSS COUNTRY,06/10/2015,75.40,Casual/Essential- General,Passenger Railways,GPC
Statement 18/09/2015 - 19/10/2015,C&YPS-Non Delegated,CROSS COUNTRY CC,24/09/2015,67.80,Other- General,Passenger Railways,GPC
Statement 18/09/2015 - 19/10/2015,C&YPS-Non Delegated,CROSS COUNTRY CC,23/09/2015,166.00,Training Expenses- General,Passenger Railways,GPC
Statement 18/09/2015 - 19/10/2015,C&YPS-Non Delegated,CURRYS,13/10/2015,74.12,Other Equipment & Materials- General,"RADIO, TELEVISION, AND STEREO STORES (ELECTRONIC STORES)",GPC
Statement 18/09/2015 - 19/10/2015,C&YPS-Non Delegated,CURRYS ONLINE,15/10/2015,99.99,Materials- General,"RADIO, TELEVISION, AND STEREO STORES (ELECTRONIC STORES)",GPC
Statement 18/09/2015 - 19/10/2015,C&YPS-Non Delegated,CURRYS ONLINE,15/10/2015,149.99,Materials- General,"RADIO, TELEVISION, AND STEREO STORES (ELECTRONIC STORES)",GPC
Statement 18/09/2015 - 19/10/2015,C&YPS-Non Delegated,CURRYS ONLINE,15/10/2015,119.99,Materials- General,"RADIO, TELEVISION, AND STEREO STORES (ELECTRONIC STORES)",GPC
Statement 18/09/2015 - 19/10/2015,C&YPS-Non Delegated,DE MONTFORT EXPERTISE LTD,12/10/2015,416.67,Other Transfer Payments- Sector 17- Other,"Colleges, Universities, Professional Schools, and",GPC
Statement 18/09/2015 - 19/10/2015,C&YPS-Non Delegated,DE MONTFORT EXPERTISE LTD,12/10/2015,265.34,Other Transfer Payments- Sector 17- Other,"Colleges, Universities, Professional Schools, and",GPC
Statement 18/09/2015 - 19/10/2015,C&YPS-Non Delegated,DISCLOSURE SCOT,21/09/2015,25.00,Other Equipment & Materials- General,Government Services-Not Elsewhere Classified,GPC
Statement 18/09/2015 - 19/10/2015,C&YPS-Non Delegated,DUNELM (SOFT FURNISHIN,25/09/2015,18.99,Other Equipment & Materials- General,"Drapery, Window Coverings, and Upholstery Stores",GPC
Statement 18/09/2015 - 19/10/2015,C&YPS-Non Delegated,DUNELM (SOFT FURNISHIN,12/10/2015,60.78,Other Equipment & Materials- General,"Drapery, Window Coverings, and Upholstery Stores",GPC
Statement 18/09/2015 - 19/10/2015,C&YPS-Non Delegated,DUNELM LTD,23/09/2015,179.90,General Equipment- General,"Drapery, Window Coverings, and Upholstery Stores",GPC
Statement 18/09/2015 - 19/10/2015,C&YPS-Non Delegated,DUNELM LTD,08/10/2015,23.97,Other Equipment & Materials- General,"Drapery, Window Coverings, and Upholstery Stores",GPC
Statement 18/09/2015 - 19/10/2015,C&YPS-Non Delegated,DUNELM LTD,12/10/2015,41.70,Other Equipment & Materials- General,"Drapery, Window Coverings, and Upholstery Stores",GPC
Statement 18/09/2015 - 19/10/2015,C&YPS-Non Delegated,DUNELM LTD,12/10/2015,114.91,Other Equipment & Materials- General,"Drapery, Window Coverings, and Upholstery Stores",GPC
Statement 18/09/2015 - 19/10/2015,C&YPS-Non Delegated,DVLA DRIVER ONLINE,28/09/2015,34.00,Other Expenditure- General,Government Services-Not Elsewhere Classified,GPC
Statement 18/09/2015 - 19/10/2015,C&YPS-Non Delegated,E H SMITH BUILDERS,02/10/2015,53.32,Provisions- General,"Building Materials, Lumber Stores",GPC
Statement 18/09/2015 - 19/10/2015,C&YPS-Non Delegated,EAST MIDLANDS TRAI,01/10/2015,78.70,Other Transport Costs- General,Passenger Railways,GPC
Statement 18/09/2015 - 19/10/2015,C&YPS-Non Delegated,EAST MIDLANDS TRAI,09/10/2015,12.70,Other Transport Costs- General,Passenger Railways,GPC
Statement 18/09/2015 - 19/10/2015,C&YPS-Non Delegated,ESPO,17/09/2015,32.65,Stationery- General,Government Services-Not Elsewhere Classified,GPC
Statement 18/09/2015 - 19/10/2015,C&YPS-Non Delegated,FARMFOODS- LOUGHBO,08/10/2015,3.89,Other Equipment & Materials- General,"Grocery Stores, Supermarkets",GPC
Statement 18/09/2015 - 19/10/2015,C&YPS-Non Delegated,GIOMANI DESIGNS LTD,25/09/2015,225.00,Materials- General,"Furniture, Home Furnishings and Equipment Stores,",GPC
Statement 18/09/2015 - 19/10/2015,C&YPS-Non Delegated,GOOSEBERRY BUSH,24/09/2015,118.92,Other Transfer Payments- Section 23 Grants,Child Care Services,GPC
Statement 18/09/2015 - 19/10/2015,C&YPS-Non Delegated,HALFORDS 0813,24/09/2015,22.98,Other Equipment & Materials- General,Bicycle Shops-Sales and Service,GPC
Statement 18/09/2015 - 19/10/2015,C&YPS-Non Delegated,HALFORDS 0977,17/09/2015,14.48,Other Equipment & Materials- General,Bicycle Shops-Sales and Service,GPC
Statement 18/09/2015 - 19/10/2015,C&YPS-Non Delegated,HMCOURTS-SERVICE.G,17/09/2015,20.00,Other Expenditure- General,Fines,GPC
Statement 18/09/2015 - 19/10/2015,C&YPS-Non Delegated,HMCOURTS-SERVICE.G,06/10/2015,50.00,Other Transfer Payments- Section 24,Fines,GPC
Statement 18/09/2015 - 19/10/2015,C&YPS-Non Delegated,HOBBYCRAFT (INTERNET),08/10/2015,23.50,Other Equipment & Materials- General,"Artist Supply Stores, Craft Shops",GPC
Statement 18/09/2015 - 19/10/2015,C&YPS-Non Delegated,HOME BARGAINS,08/10/2015,6.47,Other Equipment & Materials- General,Hardware Stores,GPC
Statement 18/09/2015 - 19/10/2015,C&YPS-Non Delegated,HOTEL IBIS LEICESTER CITY,13/10/2015,124.20,Display/Conservn/Exhibitions- General,"Lodging-Hotels, Motels, Resorts",GPC
Statement 18/09/2015 - 19/10/2015,C&YPS-Non Delegated,HOTEL IBIS LEICESTER CITY,13/10/2015,30.58,Display/Conservn/Exhibitions- General,"Lodging-Hotels, Motels, Resorts",GPC
Statement 18/09/2015 - 19/10/2015,C&YPS-Non Delegated,ICELAND,05/10/2015,109.61,Provisions- General,"Grocery Stores, Supermarkets",GPC
Statement 18/09/2015 - 19/10/2015,C&YPS-Non Delegated,IKEA,27/09/2015,34.42,Other Equipment & Materials- General,Miscellaneous House Furnishing Specialty Shops,GPC
Statement 18/09/2015 - 19/10/2015,C&YPS-Non Delegated,INCHYRA GRANGE,28/09/2015,22.90,Subsistence- General,"Lodging-Hotels, Motels, Resorts",GPC
Statement 18/09/2015 - 19/10/2015,C&YPS-Non Delegated,INCHYRA GRANGE,29/09/2015,35.00,Subsistence- General,"Lodging-Hotels, Motels, Resorts",GPC
Statement 18/09/2015 - 19/10/2015,C&YPS-Non Delegated,INTER CONTINE,23/09/2015,170.00,Subsistence- General,Intercontinental Hotels,GPC
Statement 18/09/2015 - 19/10/2015,C&YPS-Non Delegated,IPS DURHAM CONTACT CTR,28/09/2015,72.50,Other Expenditure- General,Government Services-Not Elsewhere Classified,GPC
Statement 18/09/2015 - 19/10/2015,C&YPS-Non Delegated,IPS DURHAM CONTACT CTR,21/09/2015,49.00,Other Transfer Payments- Section 23 Grants,Government Services-Not Elsewhere Classified,GPC
Statement 18/09/2015 - 19/10/2015,C&YPS-Non Delegated,J L PUTT & SONS LT,13/10/2015,8.60,R & M of Buildings- General,"Glass, Paint, Wallpaper Stores",GPC
Statement 18/09/2015 - 19/10/2015,C&YPS-Non Delegated,KIDDICARE,14/10/2015,403.15,Other Equipment & Materials- General,Miscellaneous House Furnishing Specialty Shops,GPC
Statement 18/09/2015 - 19/10/2015,C&YPS-Non Delegated,KIRBY & WEST,12/10/2015,10.10,Provisions- General,Dairy Products Stores,GPC
Statement 18/09/2015 - 19/10/2015,C&YPS-Non Delegated,LEGOLAND (CALL CEN,14/10/2015,198.00,Other Expenditure- General,Tourist Attractions and Exhibits,GPC
Statement 18/09/2015 - 19/10/2015,C&YPS-Non Delegated,LEIC CITY COUNCIL,18/09/2015,13.00,Other Expenditure- General,Government Services-Not Elsewhere Classified,GPC
Statement 18/09/2015 - 19/10/2015,C&YPS-Non Delegated,LEIC CITY COUNCIL,18/09/2015,13.00,Other Expenditure- General,Government Services-Not Elsewhere Classified,GPC
Statement 18/09/2015 - 19/10/2015,C&YPS-Non Delegated,LEIC CITY COUNCIL,21/09/2015,23.00,Other Transfer Payments- Section 23 Grants,Government Services-Not Elsewhere Classified,GPC
Statement 18/09/2015 - 19/10/2015,C&YPS-Non Delegated,LEIC CITY COUNCIL,22/09/2015,23.00,Other Transfer Payments- Section 23 Grants,Government Services-Not Elsewhere Classified,GPC
Statement 18/09/2015 - 19/10/2015,C&YPS-Non Delegated,LEIC CITY COUNCIL,22/09/2015,23.00,Other Transfer Payments- Section 23 Grants,Government Services-Not Elsewhere Classified,GPC
Statement 18/09/2015 - 19/10/2015,C&YPS-Non Delegated,LEIC CITY COUNCIL,22/09/2015,23.00,Other Transfer Payments- Section 23 Grants,Government Services-Not Elsewhere Classified,GPC
Statement 18/09/2015 - 19/10/2015,C&YPS-Non Delegated,LEIC CITY COUNCIL,22/09/2015,23.00,Other Transfer Payments- Section 23 Grants,Government Services-Not Elsewhere Classified,GPC
Statement 18/09/2015 - 19/10/2015,C&YPS-Non Delegated,LEIC CITY COUNCIL,25/09/2015,-20.00,Other Transfer Payments- Section 23 Grants,Government Services-Not Elsewhere Classified,GPC
Statement 18/09/2015 - 19/10/2015,C&YPS-Non Delegated,LEIC CITY COUNCIL,28/09/2015,23.00,Other Transfer Payments- Section 23 Grants,Government Services-Not Elsewhere Classified,GPC
Statement 18/09/2015 - 19/10/2015,C&YPS-Non Delegated,LEIC CITY COUNCIL,28/09/2015,13.00,Other Transfer Payments- Section 23 Grants,Government Services-Not Elsewhere Classified,GPC
Statement 18/09/2015 - 19/10/2015,C&YPS-Non Delegated,LEIC CITY COUNCIL,28/09/2015,13.00,Other Transfer Payments- Section 23 Grants,Government Services-Not Elsewhere Classified,GPC
Statement 18/09/2015 - 19/10/2015,C&YPS-Non Delegated,LEIC CITY COUNCIL,29/09/2015,-10.00,Other Transfer Payments- Section 23 Grants,Government Services-Not Elsewhere Classified,GPC
Statement 18/09/2015 - 19/10/2015,C&YPS-Non Delegated,LEIC CITY COUNCIL,12/10/2015,13.00,Other Transfer Payments- Section 23 Grants,Government Services-Not Elsewhere Classified,GPC
Statement 18/09/2015 - 19/10/2015,C&YPS-Non Delegated,LEIC CITY COUNCIL,13/10/2015,-10.00,Other Transfer Payments- Section 23 Grants,Government Services-Not Elsewhere Classified,GPC
Statement 18/09/2015 - 19/10/2015,C&YPS-Non Delegated,LEICESTER STAGE HOTEL,24/09/2015,195.42,Training Expenses- General,"Lodging-Hotels, Motels, Resorts",GPC
Statement 18/09/2015 - 19/10/2015,C&YPS-Non Delegated,LEICESTERSHIRE C COUNC,14/10/2015,11.00,Other Transfer Payments- Section 23 Grants,Government Services-Not Elsewhere Classified,GPC
Statement 18/09/2015 - 19/10/2015,C&YPS-Non Delegated,LEICESTERSHIRE C COUNC,02/10/2015,10.00,Other Transport Costs- General,Government Services-Not Elsewhere Classified,GPC
Statement 18/09/2015 - 19/10/2015,C&YPS-Non Delegated,LIDL UK,17/09/2015,2.55,Provisions- General,"Grocery Stores, Supermarkets",GPC
Statement 18/09/2015 - 19/10/2015,C&YPS-Non Delegated,LIDL UK,22/09/2015,5.23,Provisions- General,"Grocery Stores, Supermarkets",GPC
Statement 18/09/2015 - 19/10/2015,C&YPS-Non Delegated,LIDL UK,30/09/2015,1.39,Provisions- General,"Grocery Stores, Supermarkets",GPC
Statement 18/09/2015 - 19/10/2015,C&YPS-Non Delegated,LIDL UK,16/10/2015,31.52,Provisions- General,"Grocery Stores, Supermarkets",GPC
Statement 18/09/2015 - 19/10/2015,C&YPS-Non Delegated,LOUGHBOROUGH SST,22/09/2015,28.40,Casual/Essential- General,Passenger Railways,GPC
Statement 18/09/2015 - 19/10/2015,C&YPS-Non Delegated,LOUGHBOROUGH SST,06/10/2015,16.80,Casual/Essential- General,Passenger Railways,GPC
Statement 18/09/2015 - 19/10/2015,C&YPS-Non Delegated,LUL TICKET MACHINE,18/09/2015,35.00,Casual/Essential- General,Passenger Railways,GPC
Statement 18/09/2015 - 19/10/2015,C&YPS-Non Delegated,M&S SIMPLY FOOD - SSP,22/09/2015,2.90,Provisions- General,"Miscellaneous Food Stores-Convenience Stores, Mark",GPC
Statement 18/09/2015 - 19/10/2015,C&YPS-Non Delegated,M6 TOLL,17/09/2015,5.50,Casual/Essential- General,"Bridge and Road Fees, Tolls",GPC
Statement 18/09/2015 - 19/10/2015,C&YPS-Non Delegated,MARINA EXECUTIVE T,29/09/2015,35.00,Casual/Essential- General,Automobile Rental Agency,GPC
Statement 18/09/2015 - 19/10/2015,C&YPS-Non Delegated,MCDONALDS,29/09/2015,3.66,Other Equipment & Materials- General,"Eating Places, Restaurants",GPC
Statement 18/09/2015 - 19/10/2015,C&YPS-Non Delegated,MCDONALDS,29/09/2015,6.23,Other Equipment & Materials- General,Fast-Food Restaurants (Quick Payment Service Pilot,GPC
Statement 18/09/2015 - 19/10/2015,C&YPS-Non Delegated,MCDONALDS,15/10/2015,2.23,Other Equipment & Materials- General,"Eating Places, Restaurants",GPC
Statement 18/09/2015 - 19/10/2015,C&YPS-Non Delegated,MCDONALDS,15/10/2015,2.49,Other Equipment & Materials- General,"Eating Places, Restaurants",GPC
Statement 18/09/2015 - 19/10/2015,C&YPS-Non Delegated,MEJAY LIMITED,02/10/2015,123.12,Provisions- General,"Grocery Stores, Supermarkets",GPC
Statement 18/09/2015 - 19/10/2015,C&YPS-Non Delegated,MG LEICESTER LTD,15/10/2015,3.00,Subsistence- General,"Eating Places, Restaurants",GPC
Statement 18/09/2015 - 19/10/2015,C&YPS-Non Delegated,MOTEL ONE MANCHESTER PICC,06/10/2015,188.00,Subsistence- General,"Lodging-Hotels, Motels, Resorts",GPC
Statement 18/09/2015 - 19/10/2015,C&YPS-Non Delegated,MOTHERCARE DIRECT-E-CO,16/09/2015,78.33,General Equipment- General,Department Stores,GPC
Statement 18/09/2015 - 19/10/2015,C&YPS-Non Delegated,MOTHERCARE DIRECT-E-CO,17/09/2015,94.93,General Equipment- General,Department Stores,GPC
Statement 18/09/2015 - 19/10/2015,C&YPS-Non Delegated,NANDOS WALTHAMSTOW,18/09/2015,11.45,Subsistence- General,"Eating Places, Restaurants",GPC
Statement 18/09/2015 - 19/10/2015,C&YPS-Non Delegated,NCC INCOME,13/10/2015,11.80,Other Transfer Payments- Section 23 Grants,Government Services-Not Elsewhere Classified,GPC
Statement 18/09/2015 - 19/10/2015,C&YPS-Non Delegated,NCP LIMITED,14/10/2015,4.30,Casual/Essential- General,Automobile Parking Lots and Garages,GPC
Statement 18/09/2015 - 19/10/2015,C&YPS-Non Delegated,NEW SOUTHERN RAILW,25/09/2015,85.70,Client/Volunteers- General,Passenger Railways,GPC
Statement 18/09/2015 - 19/10/2015,C&YPS-Non Delegated,NOTTINGHAM CITY CO,17/09/2015,11.00,Communications Equipment- General,Computer Network/Information Services,GPC
Statement 18/09/2015 - 19/10/2015,C&YPS-Non Delegated,ONE STOP 2706,08/10/2015,3.50,Materials- General,"Grocery Stores, Supermarkets",GPC
Statement 18/09/2015 - 19/10/2015,C&YPS-Non Delegated,PARCELFORCE WORLDWIDE,25/09/2015,25.66,Stationery- General,"Motor Freight Carriers, and Trucking",GPC
Statement 18/09/2015 - 19/10/2015,C&YPS-Non Delegated,PARTY PROJECTS,24/09/2015,13.55,Other Equipment & Materials- General,Miscellaneous and Specialty Retail Stores,GPC
Statement 18/09/2015 - 19/10/2015,C&YPS-Non Delegated,PAYPAL  FLORIDAINST,21/09/2015,59.02,Training Expenses- General,Schools and Educational Services-Not Elsewhere Cla,GPC
Statement 18/09/2015 - 19/10/2015,C&YPS-Non Delegated,PAYPAL  HOMECRAFTS,06/10/2015,32.35,Other Equipment & Materials- General,"Artist Supply Stores, Craft Shops",GPC
Statement 18/09/2015 - 19/10/2015,C&YPS-Non Delegated,PAYPAL  SALESSERVIC,23/09/2015,59.85,Stationery- General,Chemicals and Allied Products Not Elsewhere Classi,GPC
Statement 18/09/2015 - 19/10/2015,C&YPS-Non Delegated,PEACOCK STORES,03/10/2015,35.00,Personal Needs of Clients- General,Variety Stores,GPC
Statement 18/09/2015 - 19/10/2015,C&YPS-Non Delegated,PILLINGS LOCK MARINA L,16/10/2015,4.00,Other Equipment & Materials- General,"Marinas, Marine Service/Suppliers",GPC
Statement 18/09/2015 - 19/10/2015,C&YPS-Non Delegated,PIZZA EXPRESS,22/09/2015,100.00,Rent- Room Hire,"Eating Places, Restaurants",GPC
Statement 18/09/2015 - 19/10/2015,C&YPS-Non Delegated,PIZZA EXPRESS,25/09/2015,19.50,Rent- Room Hire,"Eating Places, Restaurants",GPC
Statement 18/09/2015 - 19/10/2015,C&YPS-Non Delegated,PIZZA HUT DELIVERY,22/09/2015,34.22,Other Expenditure- General,Fast-Food Restaurants (Quick Payment Service Pilot,GPC
Statement 18/09/2015 - 19/10/2015,C&YPS-Non Delegated,POUNDLAND LTD 1219,30/09/2015,15.00,Materials- General,Discount Stores,GPC
Statement 18/09/2015 - 19/10/2015,C&YPS-Non Delegated,POUNDLAND LTD 1589,12/10/2015,14.05,Other Equipment & Materials- General,Discount Stores,GPC
Statement 18/09/2015 - 19/10/2015,C&YPS-Non Delegated,PRIMARK 648,03/10/2015,10.84,Personal Needs of Clients- General,Family Clothing Stores,GPC
Statement 18/09/2015 - 19/10/2015,C&YPS-Non Delegated,QUEENS UNIVERSITY BELF,17/09/2015,150.00,Training Expenses- General,"Colleges, Universities, Professional Schools, and",GPC
Statement 18/09/2015 - 19/10/2015,C&YPS-Non Delegated,QUEENS UNIVERSITY BELF,09/10/2015,150.00,Training Expenses- General,"Colleges, Universities, Professional Schools, and",GPC
Statement 18/09/2015 - 19/10/2015,C&YPS-Non Delegated,QUORN GLASS,24/09/2015,330.11,R & M of Buildings- General,"Glass, Paint, Wallpaper Stores",GPC
Statement 18/09/2015 - 19/10/2015,C&YPS-Non Delegated,RINGGO,29/09/2015,3.50,Casual/Essential- General,Automobile Parking Lots and Garages,GPC
Statement 18/09/2015 - 19/10/2015,C&YPS-Non Delegated,ROYAL ALBERT HALL,25/09/2015,160.00,Stationery- General,"Theatrical Products (Except Motion Pictures), Tick",GPC
Statement 18/09/2015 - 19/10/2015,C&YPS-Non Delegated,SAINSBURY'S S/MKT,19/09/2015,40.00,Materials- General,"Grocery Stores, Supermarkets",GPC
Statement 18/09/2015 - 19/10/2015,C&YPS-Non Delegated,SAINSBURY'S S/MKT,25/09/2015,3.80,Other Equipment & Materials- General,"Grocery Stores, Supermarkets",GPC
Statement 18/09/2015 - 19/10/2015,C&YPS-Non Delegated,SAINSBURY'S S/MKT,30/09/2015,8.25,Other Equipment & Materials- General,"Grocery Stores, Supermarkets",GPC
Statement 18/09/2015 - 19/10/2015,C&YPS-Non Delegated,SAINSBURYS S/MKTS,22/09/2015,1.70,Materials- General,"Grocery Stores, Supermarkets",GPC
Statement 18/09/2015 - 19/10/2015,C&YPS-Non Delegated,SAINSBURYS S/MKTS,01/10/2015,8.85,Materials- General,"Grocery Stores, Supermarkets",GPC
Statement 18/09/2015 - 19/10/2015,C&YPS-Non Delegated,Sainsburys S/mkts,05/10/2015,44.62,Materials- General,"Grocery Stores, Supermarkets",GPC
Statement 18/09/2015 - 19/10/2015,C&YPS-Non Delegated,SAINSBURYS S/MKTS,07/10/2015,7.50,Materials- General,"Grocery Stores, Supermarkets",GPC
Statement 18/09/2015 - 19/10/2015,C&YPS-Non Delegated,SAINSBURYS S/MKTS,22/09/2015,16.60,Other Expenditure- General,"Grocery Stores, Supermarkets",GPC
Statement 18/09/2015 - 19/10/2015,C&YPS-Non Delegated,SAINSBURYS S/MKTS,17/09/2015,3.70,Provisions- General,"Grocery Stores, Supermarkets",GPC
Statement 18/09/2015 - 19/10/2015,C&YPS-Non Delegated,SAINSBURYS S/MKTS,26/09/2015,5.90,Provisions- General,"Grocery Stores, Supermarkets",GPC
Statement 18/09/2015 - 19/10/2015,C&YPS-Non Delegated,SAINSBURYS S/MKTS,03/10/2015,13.00,Provisions- General,"Grocery Stores, Supermarkets",GPC
Statement 18/09/2015 - 19/10/2015,C&YPS-Non Delegated,SAINSBURYS S/MKTS,03/10/2015,7.30,Provisions- General,"Grocery Stores, Supermarkets",GPC
Statement 18/09/2015 - 19/10/2015,C&YPS-Non Delegated,SAINSBURYS S/MKTS,13/10/2015,3.10,Provisions- General,"Grocery Stores, Supermarkets",GPC
Statement 18/09/2015 - 19/10/2015,C&YPS-Non Delegated,SCS 100052,23/09/2015,295.00,Materials- General,"Furniture, Home Furnishings and Equipment Stores,",GPC
Statement 18/09/2015 - 19/10/2015,C&YPS-Non Delegated,SPECIALIST CRAFTS LTD,01/10/2015,70.94,Other Equipment & Materials- General,"Artist Supply Stores, Craft Shops",GPC
Statement 18/09/2015 - 19/10/2015,C&YPS-Non Delegated,SPORTSDIRECT.COM,03/10/2015,34.58,Personal Needs of Clients- General,Sporting Goods Stores,GPC
Statement 18/09/2015 - 19/10/2015,C&YPS-Non Delegated,SUBWAY,18/09/2015,5.00,Subsistence- General,Fast-Food Restaurants (Quick Payment Service Pilot,GPC
Statement 18/09/2015 - 19/10/2015,C&YPS-Non Delegated,TESCO STORE 2849,09/10/2015,50.00,Materials- General,"Grocery Stores, Supermarkets",GPC
Statement 18/09/2015 - 19/10/2015,C&YPS-Non Delegated,TESCO STORE 2849,22/09/2015,16.93,Other Equipment & Materials- General,"Grocery Stores, Supermarkets",GPC
Statement 18/09/2015 - 19/10/2015,C&YPS-Non Delegated,TESCO STORE 2849,29/09/2015,13.44,Other Equipment & Materials- General,"Grocery Stores, Supermarkets",GPC
Statement 18/09/2015 - 19/10/2015,C&YPS-Non Delegated,TESCO STORE 2849,08/10/2015,2.30,Other Equipment & Materials- General,"Grocery Stores, Supermarkets",GPC
Statement 18/09/2015 - 19/10/2015,C&YPS-Non Delegated,TESCO STORE 2849,08/10/2015,27.48,Other Equipment & Materials- General,"Grocery Stores, Supermarkets",GPC
Statement 18/09/2015 - 19/10/2015,C&YPS-Non Delegated,TESCO STORE 2849,08/10/2015,43.93,Other Equipment & Materials- General,"Grocery Stores, Supermarkets",GPC
Statement 18/09/2015 - 19/10/2015,C&YPS-Non Delegated,TESCO STORE 2849,13/10/2015,81.85,Other Equipment & Materials- General,"Grocery Stores, Supermarkets",GPC
Statement 18/09/2015 - 19/10/2015,C&YPS-Non Delegated,TESCO STORE 2849,28/09/2015,29.90,Other Expenditure- General,"Grocery Stores, Supermarkets",GPC
Statement 18/09/2015 - 19/10/2015,C&YPS-Non Delegated,TESCO STORE 2849,18/09/2015,9.89,Subsistence- General,"Grocery Stores, Supermarkets",GPC
Statement 18/09/2015 - 19/10/2015,C&YPS-Non Delegated,TESCO STORES 2849,01/10/2015,5.50,Materials- General,"Grocery Stores, Supermarkets",GPC
Statement 18/09/2015 - 19/10/2015,C&YPS-Non Delegated,TESCO STORES 2849,05/10/2015,5.80,Other Equipment & Materials- General,"Grocery Stores, Supermarkets",GPC
Statement 18/09/2015 - 19/10/2015,C&YPS-Non Delegated,TESCO STORES 2849,09/10/2015,14.55,Other Equipment & Materials- General,"Grocery Stores, Supermarkets",GPC
Statement 18/09/2015 - 19/10/2015,C&YPS-Non Delegated,TESCO STORES 5123,24/09/2015,14.99,Materials- General,"Grocery Stores, Supermarkets",GPC
Statement 18/09/2015 - 19/10/2015,C&YPS-Non Delegated,TESCO STORES 5168,12/10/2015,50.80,Provisions- General,"Grocery Stores, Supermarkets",GPC
Statement 18/09/2015 - 19/10/2015,C&YPS-Non Delegated,TESCO STORES 5182,15/10/2015,0.75,Display/Conservn/Exhibitions- General,"Grocery Stores, Supermarkets",GPC
Statement 18/09/2015 - 19/10/2015,C&YPS-Non Delegated,TESCO STORES 5182,21/09/2015,24.52,Other Expenditure- General,"Grocery Stores, Supermarkets",GPC
Statement 18/09/2015 - 19/10/2015,C&YPS-Non Delegated,TESCO STORES 5182,24/09/2015,2.30,Training Expenses- General,"Grocery Stores, Supermarkets",GPC
Statement 18/09/2015 - 19/10/2015,C&YPS-Non Delegated,TESCO STORES 5902,05/10/2015,30.29,Other Expenditure- General,"Grocery Stores, Supermarkets",GPC
Statement 18/09/2015 - 19/10/2015,C&YPS-Non Delegated,TESCO STORES 6135,16/10/2015,143.00,Materials- General,"Grocery Stores, Supermarkets",GPC
Statement 18/09/2015 - 19/10/2015,C&YPS-Non Delegated,TESCO STORES 6135,24/09/2015,2.60,Subsistence- General,"Grocery Stores, Supermarkets",GPC
Statement 18/09/2015 - 19/10/2015,C&YPS-Non Delegated,THE BOOK PEOPLE,24/09/2015,22.93,Books- General,Book Stores,GPC
Statement 18/09/2015 - 19/10/2015,C&YPS-Non Delegated,THE BOOK PEOPLE,30/09/2015,29.96,Books- General,Book Stores,GPC
Statement 18/09/2015 - 19/10/2015,C&YPS-Non Delegated,THE BOOK PEOPLE,14/10/2015,97.88,Books- General,Book Stores,GPC
Statement 18/09/2015 - 19/10/2015,C&YPS-Non Delegated,THE CLIMBING STATION,06/10/2015,60.00,Other Equipment & Materials- General,Sporting and Recreational Camps,GPC
Statement 18/09/2015 - 19/10/2015,C&YPS-Non Delegated,THE POST OFFICE,06/10/2015,302.40,Postal Services- General,Postage Stamps,GPC
Statement 18/09/2015 - 19/10/2015,C&YPS-Non Delegated,THE PROPERTY CO.,12/10/2015,334.45,Schools Agency staff- Teaching Staff,Miscellaneous Personal Services-Not Elsewhere Clas,GPC
Statement 18/09/2015 - 19/10/2015,C&YPS-Non Delegated,THE PROPERTY CO.,12/10/2015,334.45,Schools Agency staff- Teaching Staff,Miscellaneous Personal Services-Not Elsewhere Clas,GPC
Statement 18/09/2015 - 19/10/2015,C&YPS-Non Delegated,THE PROPERTY CO.,12/10/2015,334.45,Schools Agency staff- Teaching Staff,Miscellaneous Personal Services-Not Elsewhere Clas,GPC
Statement 18/09/2015 - 19/10/2015,C&YPS-Non Delegated,THE RANGE,24/09/2015,11.46,General Equipment- General,Department Stores,GPC
Statement 18/09/2015 - 19/10/2015,C&YPS-Non Delegated,THE RANGE,12/10/2015,43.72,Other Equipment & Materials- General,Department Stores,GPC
Statement 18/09/2015 - 19/10/2015,C&YPS-Non Delegated,THE RANGE,12/10/2015,63.06,Other Equipment & Materials- General,Department Stores,GPC
Statement 18/09/2015 - 19/10/2015,C&YPS-Non Delegated,TOYS R US,12/10/2015,187.67,Provisions- General,Miscellaneous General Merchandise Stores,GPC
Statement 18/09/2015 - 19/10/2015,C&YPS-Non Delegated,TRAINLINE,24/09/2015,61.20,Casual/Essential- General,Passenger Railways,GPC
Statement 18/09/2015 - 19/10/2015,C&YPS-Non Delegated,TRAINLINE,07/10/2015,185.13,Provisions- General,Passenger Railways,GPC
Statement 18/09/2015 - 19/10/2015,C&YPS-Non Delegated,TRAINLINE,29/09/2015,46.41,Public Transport -  Staff- General,Passenger Railways,GPC
Statement 18/09/2015 - 19/10/2015,C&YPS-Non Delegated,TVLICENSING.CO.UK,16/09/2015,145.50,Schools Agency staff- Teaching Staff,"Management, Consulting and Public Relations Servic",GPC
Statement 18/09/2015 - 19/10/2015,C&YPS-Non Delegated,TWYCROSS ZOO EMZS,23/09/2015,48.85,Subsistence- General,"Aquariums, Seaquariums, and Dolphinariums",GPC
Statement 18/09/2015 - 19/10/2015,C&YPS-Non Delegated,UCL - FSO,01/10/2015,400.00,Training Expenses- General,"Colleges, Universities, Professional Schools, and",GPC
Statement 18/09/2015 - 19/10/2015,C&YPS-Non Delegated,UK DEED POLL SERVICE LTD,10/10/2015,37.00,Schools Agency staff- Teaching Staff,Miscellaneous Personal Services-Not Elsewhere Clas,GPC
Statement 18/09/2015 - 19/10/2015,C&YPS-Non Delegated,UPT - NOTTINGHAMCITY COU,12/10/2015,5.00,Schools Agency staff- Teaching Staff,Professional Services-Not Elsewhere Classified,GPC
Statement 18/09/2015 - 19/10/2015,C&YPS-Non Delegated,UPT-EAST MIDLANDS TRN-LB,18/09/2015,11.50,Schools Agency staff- Teaching Staff,Professional Services-Not Elsewhere Classified,GPC
Statement 18/09/2015 - 19/10/2015,C&YPS-Non Delegated,UPT-EAST MIDLANDS TRN-LB,22/09/2015,11.50,Schools Agency staff- Teaching Staff,Professional Services-Not Elsewhere Classified,GPC
Statement 18/09/2015 - 19/10/2015,C&YPS-Non Delegated,UPT-EAST MIDLANDS TRN-LB,06/10/2015,11.50,Schools Agency staff- Teaching Staff,Professional Services-Not Elsewhere Classified,GPC
Statement 18/09/2015 - 19/10/2015,C&YPS-Non Delegated,VUE BSL LTD,07/10/2015,25.07,Other Equipment & Materials- General,Motion Picture Theatres,GPC
Statement 18/09/2015 - 19/10/2015,C&YPS-Non Delegated,VUE BSL LTD,07/10/2015,7.48,Other Equipment & Materials- General,Motion Picture Theatres,GPC
Statement 18/09/2015 - 19/10/2015,C&YPS-Non Delegated,VUE BSL LTD,14/10/2015,56.73,Other Equipment & Materials- General,Motion Picture Theatres,GPC
Statement 18/09/2015 - 19/10/2015,C&YPS-Non Delegated,W M MORRISONS,14/10/2015,16.89,Other Equipment & Materials- General,"Grocery Stores, Supermarkets",GPC
Statement 18/09/2015 - 19/10/2015,C&YPS-Non Delegated,WH SMITH,13/10/2015,52.78,Other Equipment & Materials- General,News Dealers and Newsstands,GPC
Statement 18/09/2015 - 19/10/2015,C&YPS-Non Delegated,WILKO RETAIL LIMIT,30/09/2015,3.13,General Equipment- General,Household Appliance Stores,GPC
Statement 18/09/2015 - 19/10/2015,C&YPS-Non Delegated,WILKO RETAIL LIMIT,28/09/2015,33.98,Materials- General,Household Appliance Stores,GPC
Statement 18/09/2015 - 19/10/2015,C&YPS-Non Delegated,WILKO RETAIL LIMIT,01/10/2015,14.00,Materials- General,Household Appliance Stores,GPC
Statement 18/09/2015 - 19/10/2015,C&YPS-Non Delegated,WILKO RETAIL LIMIT,13/10/2015,112.80,Materials- General,Household Appliance Stores,GPC
Statement 18/09/2015 - 19/10/2015,C&YPS-Non Delegated,WILKO RETAIL LIMIT,19/09/2015,5.70,Provisions- General,Household Appliance Stores,GPC
Statement 18/09/2015 - 19/10/2015,C&YPS-Non Delegated,WILKO RETAIL LIMIT,22/09/2015,8.34,R & M of Buildings- General,Household Appliance Stores,GPC
Statement 18/09/2015 - 19/10/2015,C&YPS-Non Delegated,WINELODGE,22/09/2015,36.98,Casual/Essential- General,"Eating Places, Restaurants",GPC
Statement 18/09/2015 - 19/10/2015,C&YPS-Non Delegated,WM MORRISON 054,21/09/2015,8.41,Materials- General,"Grocery Stores, Supermarkets",GPC
Statement 18/09/2015 - 19/10/2015,C&YPS-Non Delegated,WM MORRISON 054,12/10/2015,8.44,Other Equipment & Materials- General,"Grocery Stores, Supermarkets",GPC
Statement 18/09/2015 - 19/10/2015,C&YPS-Non Delegated,WM MORRISON 054,13/10/2015,37.74,Subsistence- General,"Grocery Stores, Supermarkets",GPC
Statement 18/09/2015 - 19/10/2015,C&YPS-Non Delegated,WWW.ANNARBOR.CO.UK,05/10/2015,261.00,Other Expenditure- General,Catalog Merchants,GPC
Statement 18/09/2015 - 19/10/2015,C&YPS-Non Delegated,WWW.C2UOFFICE.CO.U,13/10/2015,206.70,Stationery- General,"Stationery, Office, and School Supply Stores",GPC
Statement 18/09/2015 - 19/10/2015,C&YPS-Non Delegated,WWW.IHASCO.COM,01/10/2015,150.00,Training Expenses- General,Computer Software Stores,GPC
Statement 18/09/2015 - 19/10/2015,C&YPS-Non Delegated,WWW.JOHNLEWIS.COM,26/09/2015,244.95,Other Equipment & Materials- General,Department Stores,GPC
Statement 18/09/2015 - 19/10/2015,C&YPS-Non Delegated,WWW.KINCHBUS.CO.UK,28/09/2015,400.00,Client/Volunteers- General,"Bus Lines, Charters, Tour Buses",GPC
Statement 18/09/2015 - 19/10/2015,C&YPS-Non Delegated,WWW.MILKANDMORE.CO.UK,22/09/2015,12.48,Provisions- General,Continuity/Subscription Merchants,GPC
Statement 18/09/2015 - 19/10/2015,C&YPS-Non Delegated,WWW.MILKANDMORE.CO.UK,01/10/2015,9.40,Provisions- General,Continuity/Subscription Merchants,GPC
Statement 18/09/2015 - 19/10/2015,C&YPS-Non Delegated,WWW.MILKANDMORE.CO.UK,01/10/2015,15.60,Provisions- General,Continuity/Subscription Merchants,GPC
Statement 18/09/2015 - 19/10/2015,C&YPS-Non Delegated,WWW.MILKANDMORE.CO.UK,01/10/2015,4.68,Provisions- General,Continuity/Subscription Merchants,GPC
Statement 18/09/2015 - 19/10/2015,C&YPS-Non Delegated,WWW.POSTURITE.CO.UK,24/09/2015,40.61,Stationery- General,Commercial Furniture,GPC
Statement 18/09/2015 - 19/10/2015,C&YPS-Non Delegated,WWW.PRESCHOOL.ORG.UK,23/09/2015,15.70,Other Expenditure- General,Charitable and Social Service Organizations,GPC
Statement 18/09/2015 - 19/10/2015,C&YPS-Non Delegated,WWW.STAPLES.CO.UK,15/10/2015,83.32,Other Equipment & Materials- General,"Stationery, Office, and School Supply Stores",GPC
Statement 18/09/2015 - 19/10/2015,C&YPS-Non Delegated,WWW.THEWORKS.CO.UK,30/09/2015,80.00,Books- General,Book Stores,GPC
Statement 18/09/2015 - 19/10/2015,C&YPS-Non Delegated,WWW.THEWORKS.CO.UK,23/09/2015,28.50,Stationery- General,Book Stores,GPC
Statement 18/09/2015 - 19/10/2015,C&YPS-Non Delegated,WWW.VIKING-DIRECT.CO.U,08/10/2015,237.80,Stationery- General,"Stationary, Office Supplies, Printing and Writing",GPC
Statement 18/09/2015 - 19/10/2015,C&YPS-Non Delegated,WWW.VIKING-DIRECT.CO.U,08/10/2015,237.80,Stationery- General,"Stationary, Office Supplies, Printing and Writing",GPC
Statement 18/09/2015 - 19/10/2015,C&YPS-Non Delegated,YOUR BLINDS LTD,15/10/2015,50.83,R & M of Buildings- General,"Drapery, Window Coverings, and Upholstery Stores",GPC
Statement 18/09/2015 - 19/10/2015,C&YPS-Schools,ALDI,23/09/2015,42.28,Materials- General,"Grocery Stores, Supermarkets",GPC
Statement 18/09/2015 - 19/10/2015,C&YPS-Schools,ALDI,07/10/2015,55.32,Materials- General,"Grocery Stores, Supermarkets",GPC
Statement 18/09/2015 - 19/10/2015,C&YPS-Schools,Amazon UK Marketplace,28/09/2015,3.94,Materials- General,Miscellaneous and Specialty Retail Stores,GPC
Statement 18/09/2015 - 19/10/2015,C&YPS-Schools,Amazon UK Marketplace,07/10/2015,7.25,Materials- General,Miscellaneous and Specialty Retail Stores,GPC
Statement 18/09/2015 - 19/10/2015,C&YPS-Schools,Amazon UK Marketplace,07/10/2015,50.97,Materials- General,Miscellaneous and Specialty Retail Stores,GPC
Statement 18/09/2015 - 19/10/2015,C&YPS-Schools,ESPO,28/09/2015,25.03,Other Expenditure- General,Government Services-Not Elsewhere Classified,GPC
Statement 18/09/2015 - 19/10/2015,C&YPS-Schools,ESPO,29/09/2015,423.53,Other Expenditure- General,Government Services-Not Elsewhere Classified,GPC
Statement 18/09/2015 - 19/10/2015,C&YPS-Schools,ESPO,29/09/2015,158.32,Other Expenditure- General,Government Services-Not Elsewhere Classified,GPC
Statement 18/09/2015 - 19/10/2015,C&YPS-Schools,ESPO,06/10/2015,295.88,Other Expenditure- General,Government Services-Not Elsewhere Classified,GPC
Statement 18/09/2015 - 19/10/2015,C&YPS-Schools,ESPO,13/10/2015,48.11,Other Expenditure- General,Government Services-Not Elsewhere Classified,GPC
Statement 18/09/2015 - 19/10/2015,C&YPS-Schools,GLEBE GARDENS (COUNTES,30/09/2015,73.46,Materials- General,"Lawn and Garden Supply Stores, Nurseries",GPC
Statement 18/09/2015 - 19/10/2015,C&YPS-Schools,GLEBE GARDENS (COUNTES,12/10/2015,33.97,Materials- General,"Lawn and Garden Supply Stores, Nurseries",GPC
Statement 18/09/2015 - 19/10/2015,C&YPS-Schools,JS ONLINE GROCERY,30/09/2015,41.70,Materials- General,"Grocery Stores, Supermarkets",GPC
Statement 18/09/2015 - 19/10/2015,C&YPS-Schools,PAYPAL  PHONICSPLAY,23/09/2015,120.00,Training Expenses- General,Elementary and Secondary Schools,GPC
Statement 18/09/2015 - 19/10/2015,C&YPS-Schools,PAYPAL  WORLDBOOKSL,24/09/2015,7.29,Books- General,Book Stores,GPC
Statement 18/09/2015 - 19/10/2015,C&YPS-Schools,PAYPAL  WORLDBOOKSL,24/09/2015,-7.73,Books- General,Book Stores,GPC
Statement 18/09/2015 - 19/10/2015,C&YPS-Schools,PETS AT HOME LTD,22/09/2015,52.99,Materials- General,Pet Shops-Pet Food and Supplies,GPC
Statement 18/09/2015 - 19/10/2015,C&YPS-Schools,PETS AT HOME LTD,14/10/2015,8.50,Materials- General,Pet Shops-Pet Food and Supplies,GPC
Statement 18/09/2015 - 19/10/2015,C&YPS-Schools,SAINSBURYS S/MKTS,14/10/2015,13.55,Materials- General,"Grocery Stores, Supermarkets",GPC
Statement 18/09/2015 - 19/10/2015,C&YPS-Schools,TABLE TABLE41012765,01/10/2015,35.00,Subsistence- General,"Eating Places, Restaurants",GPC
Statement 18/09/2015 - 19/10/2015,C&YPS-Schools,TESCO - Entertainer,17/09/2015,8.00,Materials- General,Miscellaneous and Specialty Retail Stores,GPC
Statement 18/09/2015 - 19/10/2015,C&YPS-Schools,TESCO - Howleys Ltd,17/09/2015,15.97,Materials- General,Miscellaneous and Specialty Retail Stores,GPC
Statement 18/09/2015 - 19/10/2015,C&YPS-Schools,TESCO DIRECT,17/09/2015,4.00,Materials- General,Miscellaneous and Specialty Retail Stores,GPC
Statement 18/09/2015 - 19/10/2015,C&YPS-Schools,TESCO STORES 2849,07/10/2015,5.86,Materials- General,"Grocery Stores, Supermarkets",GPC
Statement 18/09/2015 - 19/10/2015,C&YPS-Schools,TESCO STORES 2849,08/10/2015,7.13,Materials- General,"Grocery Stores, Supermarkets",GPC
Statement 18/09/2015 - 19/10/2015,C&YPS-Schools,TESCO STORES 2849,08/10/2015,1.98,Materials- General,"Grocery Stores, Supermarkets",GPC
Statement 18/09/2015 - 19/10/2015,C&YPS-Schools,TESCO STORES 2849,08/10/2015,8.91,Materials- General,"Grocery Stores, Supermarkets",GPC
Statement 18/09/2015 - 19/10/2015,C&YPS-Schools,TESCO STORES 2849,15/10/2015,9.40,Materials- General,"Grocery Stores, Supermarkets",GPC
Statement 18/09/2015 - 19/10/2015,C&YPS-Schools,TESCO STORES 2849,15/10/2015,9.22,Materials- General,"Grocery Stores, Supermarkets",GPC
Statement 18/09/2015 - 19/10/2015,C&YPS-Schools,TESCO STORES 5182,22/09/2015,5.00,Materials- General,"Grocery Stores, Supermarkets",GPC
Statement 18/09/2015 - 19/10/2015,C&YPS-Schools,WWW.BAKERROSS.CO.UK,16/10/2015,94.09,Materials- General,"Artist Supply Stores, Craft Shops",GPC
Statement 18/09/2015 - 19/10/2015,Capital,BLABY DISTRICT COUNCIL,24/09/2015,579.41,Buildings - Operational- Expenditure,Government Services-Not Elsewhere Classified,GPC
Statement 18/09/2015 - 19/10/2015,Chief Executive,123-REG.CO.UK,17/09/2015,20.24,Communications Equipment- General,Computer Network/Information Services,GPC
Statement 18/09/2015 - 19/10/2015,Chief Executive,Amazon UK Marketplace,09/10/2015,34.68,Materials- General,Miscellaneous and Specialty Retail Stores,GPC
Statement 18/09/2015 - 19/10/2015,Chief Executive,Amazon UK Marketplace,05/10/2015,13.21,Other Expenditure- General,Miscellaneous and Specialty Retail Stores,GPC
Statement 18/09/2015 - 19/10/2015,Chief Executive,Amazon UK Marketplace,15/10/2015,3.51,Stationery- General,Miscellaneous and Specialty Retail Stores,GPC
Statement 18/09/2015 - 19/10/2015,Chief Executive,Amazon UK Retail,02/10/2015,18.40,Other Expenditure- General,Direct Marketers - Other,GPC
Statement 18/09/2015 - 19/10/2015,Chief Executive,ASDA SUPERSTORE,18/10/2015,17.98,Materials- General,"Grocery Stores, Supermarkets",GPC
Statement 18/09/2015 - 19/10/2015,Chief Executive,CARTRIDGESAVE.CO.UK,24/09/2015,189.15,Stationery- General,"Stationery, Office, and School Supply Stores",GPC
Statement 18/09/2015 - 19/10/2015,Chief Executive,CARTRIDGESAVE.CO.UK,09/10/2015,262.30,Stationery- General,"Stationery, Office, and School Supply Stores",GPC
Statement 18/09/2015 - 19/10/2015,Chief Executive,CENTRAL ENG COOP,24/09/2015,12.51,Materials- General,Department Stores,GPC
Statement 18/09/2015 - 19/10/2015,Chief Executive,COMPREHENSIVE MGMT,30/09/2015,61.67,Other Expenditure- General,Automobile Parking Lots and Garages,GPC
Statement 18/09/2015 - 19/10/2015,Chief Executive,FENWICK LTD LEICESTER,07/10/2015,7.50,Other Expenditure- General,Department Stores,GPC
Statement 18/09/2015 - 19/10/2015,Chief Executive,FULLERSH002MADHATTER H,30/09/2015,123.00,Training Expenses- General,"Lodging-Hotels, Motels, Resorts",GPC
Statement 18/09/2015 - 19/10/2015,Chief Executive,HOLIDAY INNS,05/10/2015,-390.00,Conference- General,Holiday Inns,GPC
Statement 18/09/2015 - 19/10/2015,Chief Executive,HOTEL Hotelsone com,14/10/2015,87.75,Casual/Essential- General,Travel Agencies,GPC
Statement 18/09/2015 - 19/10/2015,Chief Executive,INFOLAW,07/10/2015,144.00,Training Expenses- General,Direct Marketers - Other,GPC
Statement 18/09/2015 - 19/10/2015,Chief Executive,LEICESTER THEATRE TRUS,15/10/2015,1000.00,Hospitality- General,Charitable and Social Service Organizations,GPC
Statement 18/09/2015 - 19/10/2015,Chief Executive,MAN.AIRPORT REVENUE OF,22/09/2015,63.00,Operational Equipment- General,"Airports, Airport Terminals, Flying Fields",GPC
Statement 18/09/2015 - 19/10/2015,Chief Executive,PC WORLD ONLINE,05/10/2015,85.80,Operational Equipment- General,"RADIO, TELEVISION, AND STEREO STORES (ELECTRONIC STORES)",GPC
Statement 18/09/2015 - 19/10/2015,Chief Executive,ROYAL MAIL,05/10/2015,171.00,Postal Services- General,Postage Stamps,GPC
Statement 18/09/2015 - 19/10/2015,Chief Executive,SHOPPERTAINMENT MANAGE,13/10/2015,409.60,Operational Equipment- General,Professional Services-Not Elsewhere Classified,GPC
Statement 18/09/2015 - 19/10/2015,Chief Executive,STATIONERY OFFICE BOOK,16/10/2015,23.75,Other Expenditure- General,Catalog Merchants,GPC
Statement 18/09/2015 - 19/10/2015,Chief Executive,TESCO STORE 2846,04/10/2015,17.00,Other Expenditure- General,"Grocery Stores, Supermarkets",GPC
Statement 18/09/2015 - 19/10/2015,Chief Executive,TESCO-STORES 2846,17/09/2015,39.00,Other Expenditure- General,"Grocery Stores, Supermarkets",GPC
Statement 18/09/2015 - 19/10/2015,Chief Executive,TESCO-STORES 2846,30/09/2015,28.06,Other Expenditure- General,"Grocery Stores, Supermarkets",GPC
Statement 18/09/2015 - 19/10/2015,Chief Executive,TRAVELODGE AGENT,22/09/2015,88.71,Training Expenses- General,Travelodge,GPC
Statement 18/09/2015 - 19/10/2015,Chief Executive,TRAVELODGE WEBSITE,16/10/2015,100.95,Subsistence- General,Travelodge,GPC
Statement 18/09/2015 - 19/10/2015,Chief Executive,WPCHRG.COM,17/09/2015,11.00,Communications Equipment- General,Computer Network/Information Services,GPC
Statement 18/09/2015 - 19/10/2015,Chief Executive,WWW.FANEVALLEY.COM,29/09/2015,53.99,Other Expenditure- General,Hardware Stores,GPC
Statement 18/09/2015 - 19/10/2015,Corporate Resources,123 HIRE LTD,18/09/2015,-577.60,Other Services- General,"Equipment Rental and Leasing Services, Tool Rental",GPC
Statement 18/09/2015 - 19/10/2015,Corporate Resources,1PPM EDUCATION LTD,02/10/2015,30.00,Training Expenses- General,Professional Services-Not Elsewhere Classified,GPC
Statement 18/09/2015 - 19/10/2015,Corporate Resources,ADT TAXIS,09/10/2015,13.20,Other Expenditure- General,Taxicabs and Limousines,GPC
Statement 18/09/2015 - 19/10/2015,Corporate Resources,ADT TAXIS,09/10/2015,15.40,Other Expenditure- General,Taxicabs and Limousines,GPC
Statement 18/09/2015 - 19/10/2015,Corporate Resources,AMADEUS NEC,23/09/2015,10.40,Subsistence- General,Caterers,GPC
Statement 18/09/2015 - 19/10/2015,Corporate Resources,AMADEUS NEC,24/09/2015,11.20,Subsistence- General,Caterers,GPC
Statement 18/09/2015 - 19/10/2015,Corporate Resources,Amazon UK Marketplace,26/09/2015,13.66,Books- General,Book Stores,GPC
Statement 18/09/2015 - 19/10/2015,Corporate Resources,Amazon UK Marketplace,01/10/2015,25.90,Books- General,Book Stores,GPC
Statement 18/09/2015 - 19/10/2015,Corporate Resources,Amazon UK Marketplace,01/10/2015,4.80,Catering Equipment- General,Miscellaneous and Specialty Retail Stores,GPC
Statement 18/09/2015 - 19/10/2015,Corporate Resources,Amazon UK Marketplace,01/10/2015,9.50,Catering Equipment- General,Miscellaneous and Specialty Retail Stores,GPC
Statement 18/09/2015 - 19/10/2015,Corporate Resources,Amazon UK Marketplace,02/10/2015,19.70,Catering Equipment- General,Book Stores,GPC
Statement 18/09/2015 - 19/10/2015,Corporate Resources,Amazon UK Marketplace,03/10/2015,43.98,Catering Equipment- General,Book Stores,GPC
Statement 18/09/2015 - 19/10/2015,Corporate Resources,Amazon UK Marketplace,18/09/2015,58.57,Materials- General,Miscellaneous and Specialty Retail Stores,GPC
Statement 18/09/2015 - 19/10/2015,Corporate Resources,Amazon UK Marketplace,28/09/2015,29.35,Operational Equipment- General,Miscellaneous and Specialty Retail Stores,GPC
Statement 18/09/2015 - 19/10/2015,Corporate Resources,Amazon UK Marketplace,26/09/2015,66.92,Other Expenditure- General,Book Stores,GPC
Statement 18/09/2015 - 19/10/2015,Corporate Resources,Amazon UK Marketplace,27/09/2015,1.81,Other Services- General,Book Stores,GPC
Statement 18/09/2015 - 19/10/2015,Corporate Resources,Amazon UK Marketplace,28/09/2015,2.13,Other Services- General,Miscellaneous and Specialty Retail Stores,GPC
Statement 18/09/2015 - 19/10/2015,Corporate Resources,Amazon UK Marketplace,13/10/2015,17.83,Petrol/Oil/Tyres/Spares- General,Book Stores,GPC
Statement 18/09/2015 - 19/10/2015,Corporate Resources,Amazon UK Marketplace,26/09/2015,1.95,Public Transport -  Staff- General,Miscellaneous and Specialty Retail Stores,GPC
Statement 18/09/2015 - 19/10/2015,Corporate Resources,Amazon UK Marketplace,13/10/2015,9.98,Stationery- General,Miscellaneous and Specialty Retail Stores,GPC
Statement 18/09/2015 - 19/10/2015,Corporate Resources,Amazon UK Marketplace,08/10/2015,16.25,Telephones- Fax Charges,Book Stores,GPC
Statement 18/09/2015 - 19/10/2015,Corporate Resources,Amazon UK Marketplace,09/10/2015,59.17,Telephones- Fax Charges,Miscellaneous and Specialty Retail Stores,GPC
Statement 18/09/2015 - 19/10/2015,Corporate Resources,Amazon UK Marketplace,24/09/2015,18.30,Training Expenses- General,Book Stores,GPC
Statement 18/09/2015 - 19/10/2015,Corporate Resources,Amazon UK Marketplace,13/10/2015,29.96,Training Expenses- General,Miscellaneous and Specialty Retail Stores,GPC
Statement 18/09/2015 - 19/10/2015,Corporate Resources,Amazon UK Retail,01/10/2015,21.60,Other Expenditure- General,Direct Marketers - Other,GPC
Statement 18/09/2015 - 19/10/2015,Corporate Resources,Amazon UK Retail,28/09/2015,33.66,Other Services- General,Direct Marketers - Other,GPC
Statement 18/09/2015 - 19/10/2015,Corporate Resources,Amazon UK Retail,13/10/2015,20.40,Stationery- General,Direct Marketers - Other,GPC
Statement 18/09/2015 - 19/10/2015,Corporate Resources,APCOA - NWR MANCHESTER,02/10/2015,12.00,Subsistence- General,Automobile Parking Lots and Garages,GPC
Statement 18/09/2015 - 19/10/2015,Corporate Resources,ARCO LTD,15/10/2015,47.82,Other Expenditure- General,Industrial Supplies Not Elsewhere Classified,GPC
Statement 18/09/2015 - 19/10/2015,Corporate Resources,ARGOS LTD,08/10/2015,69.99,Operational Equipment- General,Discount Stores,GPC
Statement 18/09/2015 - 19/10/2015,Corporate Resources,ARGOS RETAIL GROUP,18/09/2015,142.95,IT Equipment- General,Discount Stores,GPC
Statement 18/09/2015 - 19/10/2015,Corporate Resources,ASDA STORES,22/09/2015,19.87,Other Expenditure- General,"Grocery Stores, Supermarkets",GPC
Statement 18/09/2015 - 19/10/2015,Corporate Resources,ASDA STORES 4477,23/09/2015,0.89,Other Expenditure- General,"Grocery Stores, Supermarkets",GPC
Statement 18/09/2015 - 19/10/2015,Corporate Resources,ASDA STORES 4477,25/09/2015,0.89,Other Expenditure- General,"Grocery Stores, Supermarkets",GPC
Statement 18/09/2015 - 19/10/2015,Corporate Resources,ASDA STORES 4477,30/09/2015,0.89,Other Expenditure- General,"Grocery Stores, Supermarkets",GPC
Statement 18/09/2015 - 19/10/2015,Corporate Resources,ASDA STORES 4477,30/09/2015,5.15,Other Expenditure- General,"Grocery Stores, Supermarkets",GPC
Statement 18/09/2015 - 19/10/2015,Corporate Resources,ASDA STORES 4477,05/10/2015,0.89,Other Expenditure- General,"Grocery Stores, Supermarkets",GPC
Statement 18/09/2015 - 19/10/2015,Corporate Resources,ASDA STORES 4533,18/09/2015,4.37,Other Expenditure- General,"Grocery Stores, Supermarkets",GPC
Statement 18/09/2015 - 19/10/2015,Corporate Resources,ASDA SUPERSTORE,23/09/2015,12.00,Materials- General,"Grocery Stores, Supermarkets",GPC
Statement 18/09/2015 - 19/10/2015,Corporate Resources,ASDA SUPERSTORE,12/10/2015,45.40,Materials- General,"Grocery Stores, Supermarkets",GPC
Statement 18/09/2015 - 19/10/2015,Corporate Resources,ATS EUROMASTER LTD,30/09/2015,33.33,R&M of Vehicles-Non Contract- General,Automotive Repair Shops (non-dealer),GPC
Statement 18/09/2015 - 19/10/2015,Corporate Resources,AUTOGRILL LEON KINGSCROSS,30/09/2015,6.85,Subsistence- General,"Eating Places, Restaurants",GPC
Statement 18/09/2015 - 19/10/2015,Corporate Resources,AZTEC HOTEL & SPA,11/10/2015,13.50,Subsistence- General,"Lodging-Hotels, Motels, Resorts",GPC
Statement 18/09/2015 - 19/10/2015,Corporate Resources,BASC MEMBERSHIP,05/10/2015,50.00,Other Services- General,"Membership Clubs (Sports, Recreation, Athletic), C",GPC
Statement 18/09/2015 - 19/10/2015,Corporate Resources,BLABY DISTRICT COUNCIL,17/09/2015,7.50,Public Transport -  Staff- General,Automobile Parking Lots and Garages,GPC
Statement 18/09/2015 - 19/10/2015,Corporate Resources,BOOTS 0020,22/09/2015,14.99,Other Services- General,"Drug Stores, Pharmacies",GPC
Statement 18/09/2015 - 19/10/2015,Corporate Resources,BOOTS 6500,11/10/2015,19.99,Other Equipment & Materials- General,"Drug Stores, Pharmacies",GPC
Statement 18/09/2015 - 19/10/2015,Corporate Resources,CAFE GROUNDED,28/09/2015,8.45,Subsistence- General,"Eating Places, Restaurants",GPC
Statement 18/09/2015 - 19/10/2015,Corporate Resources,CHINA TOWN NOODLE BAR,17/09/2015,169.40,Subsistence- General,"Eating Places, Restaurants",GPC
Statement 18/09/2015 - 19/10/2015,Corporate Resources,CITY SELF DRIVE/ODEON,08/10/2015,106.50,Contract Hire- General,Automobile Rental Agency,GPC
Statement 18/09/2015 - 19/10/2015,Corporate Resources,ClickMeeting,10/10/2015,23.41,Training Expenses- General,Computer Network/Information Services,GPC
Statement 18/09/2015 - 19/10/2015,Corporate Resources,ClickMeeting,15/10/2015,23.41,Training Expenses- General,Computer Network/Information Services,GPC
Statement 18/09/2015 - 19/10/2015,Corporate Resources,COOKS FARM SHOP,21/09/2015,106.10,Other Expenditure- Public Enquiry fees,"Lawn and Garden Supply Stores, Nurseries",GPC
Statement 18/09/2015 - 19/10/2015,Corporate Resources,COOKS FARM SHOP,09/10/2015,52.00,Other Expenditure- Public Enquiry fees,"Lawn and Garden Supply Stores, Nurseries",GPC
Statement 18/09/2015 - 19/10/2015,Corporate Resources,COOKS FARM SHOP,15/10/2015,78.60,Other Expenditure- Public Enquiry fees,"Lawn and Garden Supply Stores, Nurseries",GPC
Statement 18/09/2015 - 19/10/2015,Corporate Resources,CO-OP GROUP 070412,30/09/2015,11.48,Other Expenditure- General,"Grocery Stores, Supermarkets",GPC
Statement 18/09/2015 - 19/10/2015,Corporate Resources,CO-OP LATE SHOP,28/09/2015,6.75,Other Expenditure- General,"Grocery Stores, Supermarkets",GPC
Statement 18/09/2015 - 19/10/2015,Corporate Resources,COSTA COFFEE,22/09/2015,2.20,Subsistence- General,Fast-Food Restaurants (Quick Payment Service Pilot,GPC
Statement 18/09/2015 - 19/10/2015,Corporate Resources,COUNTRY TRADITION,15/10/2015,148.00,Materials- General,Sporting Goods Stores,GPC
Statement 18/09/2015 - 19/10/2015,Corporate Resources,COUNTY COURT,01/10/2015,35.00,Training Expenses- General,Fines,GPC
Statement 18/09/2015 - 19/10/2015,Corporate Resources,COUNTY COURT,06/10/2015,630.00,Training Expenses- General,Fines,GPC
Statement 18/09/2015 - 19/10/2015,Corporate Resources,CROSS COUNTRY,25/09/2015,166.00,Training Expenses- General,Passenger Railways,GPC
Statement 18/09/2015 - 19/10/2015,Corporate Resources,CROSS COUNTRY CC,22/09/2015,12.60,Training Expenses- General,Passenger Railways,GPC
Statement 18/09/2015 - 19/10/2015,Corporate Resources,CROSS COUNTRY CC,22/09/2015,92.00,Training Expenses- General,Passenger Railways,GPC
Statement 18/09/2015 - 19/10/2015,Corporate Resources,CROSS COUNTRY CC,08/10/2015,157.50,Training Expenses- General,Passenger Railways,GPC
Statement 18/09/2015 - 19/10/2015,Corporate Resources,CROSS COUNTRY CC,12/10/2015,134.00,Training Expenses- General,Passenger Railways,GPC
Statement 18/09/2015 - 19/10/2015,Corporate Resources,CURRYS,15/10/2015,38.98,Other Services- General,"RADIO, TELEVISION, AND STEREO STORES (ELECTRONIC STORES)",GPC
Statement 18/09/2015 - 19/10/2015,Corporate Resources,CURRYS,15/10/2015,199.00,Other Services- General,"RADIO, TELEVISION, AND STEREO STORES (ELECTRONIC STORES)",GPC
Statement 18/09/2015 - 19/10/2015,Corporate Resources,DAYS HOTEL,16/10/2015,119.60,Training Expenses- General,"Lodging-Hotels, Motels, Resorts",GPC
Statement 18/09/2015 - 19/10/2015,Corporate Resources,DESTINET LTD,30/09/2015,174.00,Publicity/Marketing- General,Advertising Services,GPC
Statement 18/09/2015 - 19/10/2015,Corporate Resources,EAST MIDLANDS LEICESTER,18/09/2015,27.00,Casual/Essential- General,Automobile Parking Lots and Garages,GPC
Statement 18/09/2015 - 19/10/2015,Corporate Resources,EAST MIDLANDS LEICESTER,21/09/2015,13.50,Public Transport -  Staff- General,Automobile Parking Lots and Garages,GPC
Statement 18/09/2015 - 19/10/2015,Corporate Resources,EAST MIDLANDS MARKET HAR,15/10/2015,11.00,Casual/Essential- General,Automobile Parking Lots and Garages,GPC
Statement 18/09/2015 - 19/10/2015,Corporate Resources,EAST MIDLANDS MARKET HAR,29/09/2015,11.00,Public Transport -  Staff- General,Automobile Parking Lots and Garages,GPC
Statement 18/09/2015 - 19/10/2015,Corporate Resources,EAST MIDLANDS MARKET HAR,29/09/2015,22.00,Public Transport -  Staff- General,Automobile Parking Lots and Garages,GPC
Statement 18/09/2015 - 19/10/2015,Corporate Resources,EAST MIDLANDS MARKET HAR,03/10/2015,17.50,Public Transport -  Staff- General,Automobile Parking Lots and Garages,GPC
Statement 18/09/2015 - 19/10/2015,Corporate Resources,EAST MIDLANDS MARKET HAR,06/10/2015,11.00,Public Transport -  Staff- General,Automobile Parking Lots and Garages,GPC
Statement 18/09/2015 - 19/10/2015,Corporate Resources,EAST MIDLANDS MARKET HAR,06/10/2015,11.00,Public Transport -  Staff- General,Automobile Parking Lots and Garages,GPC
Statement 18/09/2015 - 19/10/2015,Corporate Resources,EAST MIDLANDS MARKET HAR,07/10/2015,11.00,Public Transport -  Staff- General,Automobile Parking Lots and Garages,GPC
Statement 18/09/2015 - 19/10/2015,Corporate Resources,EAST MIDLANDS MARKET HAR,13/10/2015,6.50,Public Transport -  Staff- General,Automobile Parking Lots and Garages,GPC
Statement 18/09/2015 - 19/10/2015,Corporate Resources,EAST MIDLANDS MARKET HAR,13/10/2015,6.50,Public Transport -  Staff- General,Automobile Parking Lots and Garages,GPC
Statement 18/09/2015 - 19/10/2015,Corporate Resources,EAST MIDLANDS MARKET HAR,14/10/2015,11.00,Public Transport -  Staff- General,Automobile Parking Lots and Garages,GPC
Statement 18/09/2015 - 19/10/2015,Corporate Resources,EAST MIDLANDS TRAI,21/09/2015,18.20,Public Transport -  Staff- General,Passenger Railways,GPC
Statement 18/09/2015 - 19/10/2015,Corporate Resources,EB INTRANET NOW-THE C,19/09/2015,136.00,Conference- General,Business Services-Not Elsewhere Classified,GPC
Statement 18/09/2015 - 19/10/2015,Corporate Resources,EB INTRANET NOW-THE C,19/09/2015,136.00,Other Expenditure- General,Business Services-Not Elsewhere Classified,GPC
Statement 18/09/2015 - 19/10/2015,Corporate Resources,EB YLG AMP CDEG CONFE,25/09/2015,120.00,Training Expenses- General,Business Services-Not Elsewhere Classified,GPC
Statement 18/09/2015 - 19/10/2015,Corporate Resources,ELEARNING ART,16/09/2015,-308.70,IT Equipment- General,"Commercial Photography, Art, Graphics",GPC
Statement 18/09/2015 - 19/10/2015,Corporate Resources,EMAP LTD-SUBSCRIPTIONS,09/10/2015,188.40,Subscriptions- General,Miscellaneous Publishing and  Printing,GPC
Statement 18/09/2015 - 19/10/2015,Corporate Resources,ESSO MALTHURST  MEASHAM,14/10/2015,1.49,Other Expenditure- General,Service Stations (with or without Ancillary Servic,GPC
Statement 18/09/2015 - 19/10/2015,Corporate Resources,FAROL LIMITED,28/09/2015,48.14,Other Services- General,Miscellaneous Automotive Dealers -  Not Elsewhere,GPC
Statement 18/09/2015 - 19/10/2015,Corporate Resources,FAROL LIMITED,28/09/2015,166.66,Other Services- General,Miscellaneous Automotive Dealers -  Not Elsewhere,GPC
Statement 18/09/2015 - 19/10/2015,Corporate Resources,FGW SELF SERVICE,29/09/2015,4.20,Public Transport -  Staff- General,Passenger Railways,GPC
Statement 18/09/2015 - 19/10/2015,Corporate Resources,FGW SELF SERVICE,29/09/2015,9.20,Subsistence- General,Passenger Railways,GPC
Statement 18/09/2015 - 19/10/2015,Corporate Resources,FOREIGN EXCHANGE FEE,18/09/2015,-8.49,IT Equipment- General,Misc-Unknown,GPC
Statement 18/09/2015 - 19/10/2015,Corporate Resources,FOREIGN EXCHANGE FEE,01/10/2015,9.09,IT Equipment- Purchase - Hardware,Misc-Unknown,GPC
Statement 18/09/2015 - 19/10/2015,Corporate Resources,FOREIGN EXCHANGE FEE,07/10/2015,2.94,Publicity/Marketing- General,Misc-Unknown,GPC
Statement 18/09/2015 - 19/10/2015,Corporate Resources,FOREIGN EXCHANGE FEE,12/10/2015,1.06,Subscriptions- General,Misc-Unknown,GPC
Statement 18/09/2015 - 19/10/2015,Corporate Resources,FORGE BAKEHOUSE LIMITE,16/10/2015,6.70,Provisions- General,Bakeries,GPC
Statement 18/09/2015 - 19/10/2015,Corporate Resources,GANTTIC LLC,11/10/2015,38.67,Subscriptions- General,Miscellaneous and Specialty Retail Stores,GPC
Statement 18/09/2015 - 19/10/2015,Corporate Resources,GILLIVERS LTD,21/09/2015,59.15,Protective Clothing & Uniforms- General,Family Clothing Stores,GPC
Statement 18/09/2015 - 19/10/2015,Corporate Resources,GO OUTDOORS LTD,22/09/2015,60.00,Materials- General,"Sports Apparel, Riding Apparel Stores",GPC
Statement 18/09/2015 - 19/10/2015,Corporate Resources,GO OUTDOORS LTD,23/09/2015,105.00,Materials- General,"Sports Apparel, Riding Apparel Stores",GPC
Statement 18/09/2015 - 19/10/2015,Corporate Resources,HALFORDS 0428,29/09/2015,24.15,Other Services- General,Bicycle Shops-Sales and Service,GPC
Statement 18/09/2015 - 19/10/2015,Corporate Resources,HALLMARK TRACTORS LTD,28/09/2015,3.68,Other Services- General,Miscellaneous Automotive Dealers -  Not Elsewhere,GPC
Statement 18/09/2015 - 19/10/2015,Corporate Resources,HALLMARK TRACTORS LTD,30/09/2015,62.81,Protective Clothing & Uniforms- General,Miscellaneous Automotive Dealers -  Not Elsewhere,GPC
Statement 18/09/2015 - 19/10/2015,Corporate Resources,HARLOW BROS LTD,24/09/2015,3.84,Other Expenditure- General,"Building Materials, Lumber Stores",GPC
Statement 18/09/2015 - 19/10/2015,Corporate Resources,HARLOW BROS LTD,29/09/2015,7.09,Other Services- General,"Building Materials, Lumber Stores",GPC
Statement 18/09/2015 - 19/10/2015,Corporate Resources,HARLOW BROS LTD,29/09/2015,31.90,Other Services- General,"Building Materials, Lumber Stores",GPC
Statement 18/09/2015 - 19/10/2015,Corporate Resources,HENRY BODDINGTON,29/09/2015,6.54,Subsistence- General,"Eating Places, Restaurants",GPC
Statement 18/09/2015 - 19/10/2015,Corporate Resources,HENRY BODDINGTON,29/09/2015,10.69,Subsistence- General,"Eating Places, Restaurants",GPC
Statement 18/09/2015 - 19/10/2015,Corporate Resources,HIGGOTTS,10/10/2015,80.60,Other Expenditure- General,Landscaping and Horticultural Services,GPC
Statement 18/09/2015 - 19/10/2015,Corporate Resources,HIGGOTTS,14/10/2015,13.88,Other Expenditure- General,Landscaping and Horticultural Services,GPC
Statement 18/09/2015 - 19/10/2015,Corporate Resources,HIGGOTTS,21/09/2015,18.88,Other Services- General,Landscaping and Horticultural Services,GPC
Statement 18/09/2015 - 19/10/2015,Corporate Resources,HIGGOTTS,24/09/2015,10.83,Petrol/Oil/Tyres/Spares- General,Landscaping and Horticultural Services,GPC
Statement 18/09/2015 - 19/10/2015,Corporate Resources,HMCOURTS-SERVICE.G,28/09/2015,210.00,Other Expenditure- General,Fines,GPC
Statement 18/09/2015 - 19/10/2015,Corporate Resources,HMCOURTS-SERVICE.G,08/10/2015,210.00,Other Expenditure- General,Fines,GPC
Statement 18/09/2015 - 19/10/2015,Corporate Resources,HOLIDAY INN EXPRESS BR,27/09/2015,10.99,Subsistence- General,Holiday Inns,GPC
Statement 18/09/2015 - 19/10/2015,Corporate Resources,HOLIDAY INN PRESTON FE,21/09/2015,71.25,Training Expenses- General,Holiday Inns,GPC
Statement 18/09/2015 - 19/10/2015,Corporate Resources,HOLIDAY INN PRESTON FE,24/09/2015,71.28,Training Expenses- General,Holiday Inns,GPC
Statement 18/09/2015 - 19/10/2015,Corporate Resources,HOLIDAY INN PRESTON FE,01/10/2015,62.50,Training Expenses- General,Holiday Inns,GPC
Statement 18/09/2015 - 19/10/2015,Corporate Resources,HOLIDAY INN PRESTON FE,05/10/2015,60.00,Training Expenses- General,Holiday Inns,GPC
Statement 18/09/2015 - 19/10/2015,Corporate Resources,HOLIDAY INN PRESTON FE,05/10/2015,62.50,Training Expenses- General,Holiday Inns,GPC
Statement 18/09/2015 - 19/10/2015,Corporate Resources,HOLIDAY INN PRESTON FE,05/10/2015,68.40,Training Expenses- General,Holiday Inns,GPC
Statement 18/09/2015 - 19/10/2015,Corporate Resources,HOLIDAY INNS,14/10/2015,136.00,Training Expenses- General,Holiday Inns,GPC
Statement 18/09/2015 - 19/10/2015,Corporate Resources,HOLIDAY INNS,14/10/2015,136.00,Training Expenses- General,Holiday Inns,GPC
Statement 18/09/2015 - 19/10/2015,Corporate Resources,HOOTSUITE MEDIA INC.,06/10/2015,107.04,Publicity/Marketing- General,Business Services-Not Elsewhere Classified,GPC
Statement 18/09/2015 - 19/10/2015,Corporate Resources,HTTP://ACE.APPRENTICES,21/09/2015,22.00,Training Expenses- General,"Management, Consulting and Public Relations Servic",GPC
Statement 18/09/2015 - 19/10/2015,Corporate Resources,HTTP://ACE.APPRENTICES,21/09/2015,22.00,Training Expenses- General,"Management, Consulting and Public Relations Servic",GPC
Statement 18/09/2015 - 19/10/2015,Corporate Resources,HTTP://ACE.APPRENTICES,21/09/2015,22.00,Training Expenses- General,"Management, Consulting and Public Relations Servic",GPC
Statement 18/09/2015 - 19/10/2015,Corporate Resources,J R CONTRACTS,15/10/2015,220.50,Other Expenditure- General,GENERAL CONTRACTORS - RESIDENTIAL AND COMMERCIAL,GPC
Statement 18/09/2015 - 19/10/2015,Corporate Resources,JAY FURNITURE FITT,22/09/2015,4.66,Materials- General,"Furniture, Home Furnishings and Equipment Stores,",GPC
Statement 18/09/2015 - 19/10/2015,Corporate Resources,LANCS COUNTY CRICK,21/09/2015,114.40,Training Expenses- General,"Membership Clubs (Sports, Recreation, Athletic), C",GPC
Statement 18/09/2015 - 19/10/2015,Corporate Resources,LCC CATERING SERVICES,01/10/2015,5.60,Subsistence- General,Government Services-Not Elsewhere Classified,GPC
Statement 18/09/2015 - 19/10/2015,Corporate Resources,LGC CAFE,25/09/2015,20.35,Subsistence- General,"Lawn and Garden Supply Stores, Nurseries",GPC
Statement 18/09/2015 - 19/10/2015,Corporate Resources,LINKEDIN-219 4128434,15/10/2015,227.94,Other Expenditure- General,Continuity/Subscription Merchants,GPC
Statement 18/09/2015 - 19/10/2015,Corporate Resources,LINKEDIN-317 1713803,24/09/2015,227.94,Other Expenditure- General,Continuity/Subscription Merchants,GPC
Statement 18/09/2015 - 19/10/2015,Corporate Resources,LINKEDIN-3171731423,24/09/2015,227.94,Other Expenditure- General,Continuity/Subscription Merchants,GPC
Statement 18/09/2015 - 19/10/2015,Corporate Resources,LUL TICKET MACHINE,28/09/2015,50.00,Public Transport -  Staff- General,Passenger Railways,GPC
Statement 18/09/2015 - 19/10/2015,Corporate Resources,LUL TICKET MACHINE,30/09/2015,12.00,Public Transport -  Staff- General,Passenger Railways,GPC
Statement 18/09/2015 - 19/10/2015,Corporate Resources,LUL TICKET MACHINE,02/10/2015,30.00,Public Transport -  Staff- General,Passenger Railways,GPC
Statement 18/09/2015 - 19/10/2015,Corporate Resources,LUL TICKET MACHINE,15/10/2015,30.00,Public Transport -  Staff- General,Passenger Railways,GPC
Statement 18/09/2015 - 19/10/2015,Corporate Resources,LUL TICKET MACHINE,15/10/2015,50.00,Public Transport -  Staff- General,Passenger Railways,GPC
Statement 18/09/2015 - 19/10/2015,Corporate Resources,M&S SIMPLY FOOD - SSP,21/09/2015,4.75,Subsistence- General,"Miscellaneous Food Stores-Convenience Stores, Mark",GPC
Statement 18/09/2015 - 19/10/2015,Corporate Resources,M&S SIMPLY FOOD - SSP,11/10/2015,4.19,Subsistence- General,"Miscellaneous Food Stores-Convenience Stores, Mark",GPC
Statement 18/09/2015 - 19/10/2015,Corporate Resources,MAKRO SELF SERVICE LEICES,18/09/2015,3.19,Materials- General,Wholesale Clubs,GPC
Statement 18/09/2015 - 19/10/2015,Corporate Resources,MAKRO SELF SERVICE LEICES,14/10/2015,28.75,Materials- General,Wholesale Clubs,GPC
Statement 18/09/2015 - 19/10/2015,Corporate Resources,MAPLIN-206-LOUGHBOROUGH,28/09/2015,22.48,Other Services- General,"RADIO, TELEVISION, AND STEREO STORES (ELECTRONIC STORES)",GPC
Statement 18/09/2015 - 19/10/2015,Corporate Resources,MARKS & SPENCER,12/10/2015,6.65,Subsistence- General,"Grocery Stores, Supermarkets",GPC
Statement 18/09/2015 - 19/10/2015,Corporate Resources,MB SIGN DESIGN,15/10/2015,175.00,Operational Equipment- General,Miscellaneous and Specialty Retail Stores,GPC
Statement 18/09/2015 - 19/10/2015,Corporate Resources,NAYLOR'S BREWERY LTD,15/10/2015,14.75,Subsistence- General,"Drinking Places (Alcoholic Beverages)-Bars, Tavern",GPC
Statement 18/09/2015 - 19/10/2015,Corporate Resources,NEW SOUTHERN RAILW,02/10/2015,50.00,Public Transport -  Staff- General,Passenger Railways,GPC
Statement 18/09/2015 - 19/10/2015,Corporate Resources,NO 5 CHAMBERS LTD,08/10/2015,100.00,Training Expenses- General,"Legal Services, Attorneys",GPC
Statement 18/09/2015 - 19/10/2015,Corporate Resources,OYSTER AUTOTOPUP,27/09/2015,20.00,Public Transport -  Staff- General,Passenger Railways,GPC
Statement 18/09/2015 - 19/10/2015,Corporate Resources,OYSTER AUTOTOPUP,01/10/2015,20.00,Public Transport -  Staff- General,Passenger Railways,GPC
Statement 18/09/2015 - 19/10/2015,Corporate Resources,OYSTER RENEW WEB,22/09/2015,50.00,Public Transport -  Staff- General,Passenger Railways,GPC
Statement 18/09/2015 - 19/10/2015,Corporate Resources,P & R BUILDING SUPPLIE,29/09/2015,85.69,Other Services- General,"Building Materials, Lumber Stores",GPC
Statement 18/09/2015 - 19/10/2015,Corporate Resources,PARKING METERS,30/09/2015,9.00,Public Transport -  Staff- General,Government Services-Not Elsewhere Classified,GPC
Statement 18/09/2015 - 19/10/2015,Corporate Resources,PARKING METERS,12/10/2015,4.50,Public Transport -  Staff- General,Government Services-Not Elsewhere Classified,GPC
Statement 18/09/2015 - 19/10/2015,Corporate Resources,PAYPAL  IPROW,02/10/2015,42.88,Training Expenses- General,Charitable and Social Service Organizations,GPC
Statement 18/09/2015 - 19/10/2015,Corporate Resources,PAYPAL  JCT CONSULT,25/09/2015,309.87,Training Expenses- General,"Engineering, Architectural, and Surveying Services",GPC
Statement 18/09/2015 - 19/10/2015,Corporate Resources,PAYPAL  LOCKLANSYST,16/10/2015,5.66,Contract Hire- General,Computer and Data Processing Services,GPC
Statement 18/09/2015 - 19/10/2015,Corporate Resources,PAYPAL  NAS UK,22/09/2015,245.00,Training Expenses- General,Charitable and Social Service Organizations,GPC
Statement 18/09/2015 - 19/10/2015,Corporate Resources,PAYPAL  TREECOUNCIL,29/09/2015,15.00,Training Expenses- General,Charitable and Social Service Organizations,GPC
Statement 18/09/2015 - 19/10/2015,Corporate Resources,POULTON-LE-FYLDE STN T,30/09/2015,29.00,Public Transport -  Staff- General,Passenger Railways,GPC
Statement 18/09/2015 - 19/10/2015,Corporate Resources,PREMIER INN44521250,20/09/2015,43.96,Training Expenses- General,PREMIER TRAVEL,GPC
Statement 18/09/2015 - 19/10/2015,Corporate Resources,PREMIER INN44521250,13/10/2015,68.13,Training Expenses- General,PREMIER TRAVEL,GPC
Statement 18/09/2015 - 19/10/2015,Corporate Resources,PREMIER INN44521260,10/10/2015,37.60,Subsistence- General,PREMIER TRAVEL,GPC
Statement 18/09/2015 - 19/10/2015,Corporate Resources,PREMIER INN44521260,10/10/2015,55.20,Subsistence- General,PREMIER TRAVEL,GPC
Statement 18/09/2015 - 19/10/2015,Corporate Resources,PREMIER INN44521260,10/10/2015,55.20,Subsistence- General,PREMIER TRAVEL,GPC
Statement 18/09/2015 - 19/10/2015,Corporate Resources,PREMIER INN44521260,10/10/2015,55.20,Subsistence- General,PREMIER TRAVEL,GPC
Statement 18/09/2015 - 19/10/2015,Corporate Resources,PRET A MANGER,25/09/2015,1.75,Subsistence- General,"Eating Places, Restaurants",GPC
Statement 18/09/2015 - 19/10/2015,Corporate Resources,PRET A MANGER,07/10/2015,6.00,Subsistence- General,"Eating Places, Restaurants",GPC
Statement 18/09/2015 - 19/10/2015,Corporate Resources,PROSPECT GROUP,17/09/2015,22.18,Other Expenditure- General,Hardware Stores,GPC
Statement 18/09/2015 - 19/10/2015,Corporate Resources,PTRC-TRAINING.CO.U,02/10/2015,449.00,Training Expenses- General,"Colleges, Universities, Professional Schools, and",GPC
Statement 18/09/2015 - 19/10/2015,Corporate Resources,QUORN GRANGE HOTEL,18/09/2015,138.00,Training Expenses- General,"Lodging-Hotels, Motels, Resorts",GPC
Statement 18/09/2015 - 19/10/2015,Corporate Resources,QUORN GRANGE HOTEL,21/09/2015,64.00,Training Expenses- General,"Lodging-Hotels, Motels, Resorts",GPC
Statement 18/09/2015 - 19/10/2015,Corporate Resources,R MASSEY & SON LTD,29/09/2015,5.79,Other Expenditure- General,Hardware Stores,GPC
Statement 18/09/2015 - 19/10/2015,Corporate Resources,R MASSEY & SON LTD,10/10/2015,17.98,Other Expenditure- General,Hardware Stores,GPC
Statement 18/09/2015 - 19/10/2015,Corporate Resources,SAINSBURY'S S/MKT,12/10/2015,47.00,Materials- General,"Grocery Stores, Supermarkets",GPC
Statement 18/09/2015 - 19/10/2015,Corporate Resources,SAINSBURY'S S/MKT,11/10/2015,11.14,Other Equipment & Materials- General,"Grocery Stores, Supermarkets",GPC
Statement 18/09/2015 - 19/10/2015,Corporate Resources,SAINSBURYS S/MKTS,14/10/2015,2.00,Subsistence- General,"Grocery Stores, Supermarkets",GPC
Statement 18/09/2015 - 19/10/2015,Corporate Resources,SANS SUPPLIES LTD,12/10/2015,72.50,Operational Equipment- Rental,Miscellaneous and Specialty Retail Stores,GPC
Statement 18/09/2015 - 19/10/2015,Corporate Resources,SETON,08/10/2015,67.11,Operational Equipment- General,Durable Goods Not Elsewhere Classified,GPC
Statement 18/09/2015 - 19/10/2015,Corporate Resources,SEYMOUR HOTELS LTD,17/09/2015,195.00,Training Expenses- General,"Lodging-Hotels, Motels, Resorts",GPC
Statement 18/09/2015 - 19/10/2015,Corporate Resources,SEYMOUR HOTELS LTD,14/10/2015,130.00,Training Expenses- General,"Lodging-Hotels, Motels, Resorts",GPC
Statement 18/09/2015 - 19/10/2015,Corporate Resources,SHEFFIELD HALLAM U,21/09/2015,161.70,Conference- General,"Colleges, Universities, Professional Schools, and",GPC
Statement 18/09/2015 - 19/10/2015,Corporate Resources,SHEFFIELD HALLAM U,13/10/2015,48.00,Training Expenses- General,"Colleges, Universities, Professional Schools, and",GPC
Statement 18/09/2015 - 19/10/2015,Corporate Resources,SLB SUPPLIES LTD,02/10/2015,85.00,Other Services- General,Pet Shops-Pet Food and Supplies,GPC
Statement 18/09/2015 - 19/10/2015,Corporate Resources,STAPLES UK,30/09/2015,9.99,Stationery- General,"Stationery, Office, and School Supply Stores",GPC
Statement 18/09/2015 - 19/10/2015,Corporate Resources,TERRATRUCK DISTRIB,12/10/2015,31.95,Other Services- General,Hardware Stores,GPC
Statement 18/09/2015 - 19/10/2015,Corporate Resources,TERRATRUCK DISTRIB,14/10/2015,8.33,Other Services- General,Hardware Stores,GPC
Statement 18/09/2015 - 19/10/2015,Corporate Resources,TESCO-STORES 6065,16/10/2015,12.93,Other Expenditure- General,"Grocery Stores, Supermarkets",GPC
Statement 18/09/2015 - 19/10/2015,Corporate Resources,TFGM METROLINK,18/09/2015,2.80,Public Transport -  Staff- General,"Bus Lines, Charters, Tour Buses",GPC
Statement 18/09/2015 - 19/10/2015,Corporate Resources,TFGM METROLINK,21/09/2015,3.90,Public Transport -  Staff- General,"Bus Lines, Charters, Tour Buses",GPC
Statement 18/09/2015 - 19/10/2015,Corporate Resources,TFGM METROLINK,28/09/2015,2.80,Public Transport -  Staff- General,"Bus Lines, Charters, Tour Buses",GPC
Statement 18/09/2015 - 19/10/2015,Corporate Resources,TFGM METROLINK,30/09/2015,3.10,Public Transport -  Staff- General,"Bus Lines, Charters, Tour Buses",GPC
Statement 18/09/2015 - 19/10/2015,Corporate Resources,TFGM METROLINK,14/10/2015,3.90,Public Transport -  Staff- General,"Bus Lines, Charters, Tour Buses",GPC
Statement 18/09/2015 - 19/10/2015,Corporate Resources,THE POST OFFICE,16/10/2015,1.73,Postal Services- General,Postage Stamps,GPC
Statement 18/09/2015 - 19/10/2015,Corporate Resources,THE ROYAL HOTEL,23/09/2015,-78.00,Subsistence- General,"Lodging-Hotels, Motels, Resorts",GPC
Statement 18/09/2015 - 19/10/2015,Corporate Resources,THE ROYAL HOTEL,23/09/2015,-78.00,Subsistence- General,"Lodging-Hotels, Motels, Resorts",GPC
Statement 18/09/2015 - 19/10/2015,Corporate Resources,TRAINLINE,12/10/2015,161.16,Public Transport -  Staff- General,Passenger Railways,GPC
Statement 18/09/2015 - 19/10/2015,Corporate Resources,TRAINLINE,14/10/2015,20.04,Public Transport -  Staff- General,Passenger Railways,GPC
Statement 18/09/2015 - 19/10/2015,Corporate Resources,VERDON TIMBER GROUP LI,23/09/2015,40.56,Other Services- General,"Building Materials, Lumber Stores",GPC
Statement 18/09/2015 - 19/10/2015,Corporate Resources,VERDON TIMBER GROUP LI,24/09/2015,7.87,Other Services- General,"Building Materials, Lumber Stores",GPC
Statement 18/09/2015 - 19/10/2015,Corporate Resources,VIEWER CENTRAL  INC.,29/09/2015,275.47,IT Equipment- Purchase - Hardware,Computer Software Stores,GPC
Statement 18/09/2015 - 19/10/2015,Corporate Resources,VILLAGE HOTEL HERONS (B),13/10/2015,6.95,Subsistence- General,"Lodging-Hotels, Motels, Resorts",GPC
Statement 18/09/2015 - 19/10/2015,Corporate Resources,VIRGIN TRAINS EC,15/10/2015,1.95,Public Transport -  Staff- General,Passenger Railways,GPC
Statement 18/09/2015 - 19/10/2015,Corporate Resources,W M MORRISONS CAFE,23/09/2015,6.25,Subsistence- General,"Eating Places, Restaurants",GPC
Statement 18/09/2015 - 19/10/2015,Corporate Resources,WEST COAST TRAINS,25/09/2015,8.50,Casual/Essential- General,Automobile Parking Lots and Garages,GPC
Statement 18/09/2015 - 19/10/2015,Corporate Resources,WEST COAST TRAINS,13/10/2015,8.50,Casual/Essential- General,Automobile Parking Lots and Garages,GPC
Statement 18/09/2015 - 19/10/2015,Corporate Resources,WEST COAST TRAINS,17/09/2015,79.60,Public Transport -  Staff- General,Passenger Railways,GPC
Statement 18/09/2015 - 19/10/2015,Corporate Resources,WESTMINSTER FORUM,14/10/2015,210.00,Training Expenses- General,"Management, Consulting and Public Relations Servic",GPC
Statement 18/09/2015 - 19/10/2015,Corporate Resources,WH SMITH,07/10/2015,7.99,Stationery- General,News Dealers and Newsstands,GPC
Statement 18/09/2015 - 19/10/2015,Corporate Resources,WICKES,11/10/2015,8.57,Other Expenditure- General,"Building Materials, Lumber Stores",GPC
Statement 18/09/2015 - 19/10/2015,Corporate Resources,WICKES,25/09/2015,20.65,Other Services- General,"Building Materials, Lumber Stores",GPC
Statement 18/09/2015 - 19/10/2015,Corporate Resources,WILKO RETAIL LIMIT,25/09/2015,25.78,Other Services- General,Household Appliance Stores,GPC
Statement 18/09/2015 - 19/10/2015,Corporate Resources,WILKO RETAIL LIMIT,06/10/2015,39.91,Other Services- General,Household Appliance Stores,GPC
Statement 18/09/2015 - 19/10/2015,Corporate Resources,WM MORRISON 054,09/10/2015,14.83,Other Expenditure- General,"Grocery Stores, Supermarkets",GPC
Statement 18/09/2015 - 19/10/2015,Corporate Resources,WWW.CIPS.ORG,14/10/2015,195.84,Training Expenses- General,Membership Organizations-Not Elsewhere Classified,GPC
Statement 18/09/2015 - 19/10/2015,Corporate Resources,WWW.CIPS.ORG,14/10/2015,127.50,Training Expenses- General,Membership Organizations-Not Elsewhere Classified,GPC
Statement 18/09/2015 - 19/10/2015,Corporate Resources,WWW.COMMIDEA.COM,30/09/2015,82.76,IT Equipment- General,Computer and Data Processing Services,GPC
Statement 18/09/2015 - 19/10/2015,Corporate Resources,WWW.EQUIP4WORK.CO.UK,02/10/2015,210.00,Operational Equipment- General,"Stationery, Office, and School Supply Stores",GPC
Statement 18/09/2015 - 19/10/2015,Corporate Resources,WWW.ICE.ORG.UK,21/09/2015,-114.00,Training Expenses- General,Membership Organizations-Not Elsewhere Classified,GPC
Statement 18/09/2015 - 19/10/2015,Corporate Resources,WWW.NTU.AC.UK,23/09/2015,315.00,Training Expenses- General,"Colleges, Universities, Professional Schools, and",GPC
Statement 18/09/2015 - 19/10/2015,Corporate Resources,WWW.PAYATRADER.COM,18/09/2015,10.20,IT Equipment- General,"Heating, Plumbing, Air Conditioning Contractors",GPC
Statement 18/09/2015 - 19/10/2015,Corporate Resources,WWW.POSTURITE.CO.UK,13/10/2015,104.95,Training Expenses- General,Commercial Furniture,GPC
Statement 18/09/2015 - 19/10/2015,Corporate Resources,WWW.POSTURITE.CO.UK,13/10/2015,22.68,Training Expenses- General,Commercial Furniture,GPC
Statement 18/09/2015 - 19/10/2015,Corporate Resources,WWW.POSTURITE.CO.UK,13/10/2015,16.16,Training Expenses- General,Commercial Furniture,GPC
Statement 18/09/2015 - 19/10/2015,Corporate Resources,XC TRAINS LTD,28/09/2015,3.20,Public Transport -  Staff- General,Passenger Railways,GPC
Statement 18/09/2015 - 19/10/2015,Corporate Resources,XC TRAINS LTD,12/10/2015,2.30,Public Transport -  Staff- General,Passenger Railways,GPC
Statement 18/09/2015 - 19/10/2015,Corporate Resources,YAK YETI YAK,28/09/2015,24.00,Subsistence- General,"Eating Places, Restaurants",GPC
Statement 18/09/2015 - 19/10/2015,Corporate Resources,ZIZZI,06/10/2015,16.85,Subsistence- General,"Eating Places, Restaurants",GPC
Statement 18/09/2015 - 19/10/2015,E&T,AGE UK IADVISORS,23/09/2015,7.41,Cleaning Materials- General,Miscellaneous and Specialty Retail Stores,GPC
Statement 18/09/2015 - 19/10/2015,E&T,Amazon Svcs Europe SAR,12/10/2015,83.40,Other Equipment & Materials- General,Book Stores,GPC
Statement 18/09/2015 - 19/10/2015,E&T,Amazon UK Marketplace,07/10/2015,5.80,Newspapers & Periodicals- General,Miscellaneous and Specialty Retail Stores,GPC
Statement 18/09/2015 - 19/10/2015,E&T,Amazon UK Marketplace,18/09/2015,4.97,Other Equipment & Materials- General,Miscellaneous and Specialty Retail Stores,GPC
Statement 18/09/2015 - 19/10/2015,E&T,Amazon UK Marketplace,06/10/2015,4.97,Other Equipment & Materials- General,Miscellaneous and Specialty Retail Stores,GPC
Statement 18/09/2015 - 19/10/2015,E&T,Amazon UK Marketplace,09/10/2015,17.67,Other Equipment & Materials- General,Miscellaneous and Specialty Retail Stores,GPC
Statement 18/09/2015 - 19/10/2015,E&T,Amazon UK Marketplace,12/10/2015,5.40,Other Equipment & Materials- General,Miscellaneous and Specialty Retail Stores,GPC
Statement 18/09/2015 - 19/10/2015,E&T,Amazon UK Marketplace,15/10/2015,33.71,Publicity/Marketing- General,Miscellaneous and Specialty Retail Stores,GPC
Statement 18/09/2015 - 19/10/2015,E&T,Amazon UK Retail,30/09/2015,10.34,Other Equipment & Materials- General,Direct Marketers - Other,GPC
Statement 18/09/2015 - 19/10/2015,E&T,Amazon UK Retail,02/10/2015,10.33,Other Equipment & Materials- General,Direct Marketers - Other,GPC
Statement 18/09/2015 - 19/10/2015,E&T,Amazon UK Retail,07/10/2015,29.79,Other Equipment & Materials- General,Direct Marketers - Other,GPC
Statement 18/09/2015 - 19/10/2015,E&T,Amazon UK Retail,15/10/2015,11.65,Other Equipment & Materials- General,Direct Marketers - Other,GPC
Statement 18/09/2015 - 19/10/2015,E&T,Amazon UK Retail,08/10/2015,50.00,Private Contractors- Other,Direct Marketers - Other,GPC
Statement 18/09/2015 - 19/10/2015,E&T,Amazon UK Retail,23/09/2015,39.96,Stationery- General,Direct Marketers - Other,GPC
Statement 18/09/2015 - 19/10/2015,E&T,ARCO LTD,17/09/2015,17.99,Protective Clothing & Uniforms- General,Industrial Supplies Not Elsewhere Classified,GPC
Statement 18/09/2015 - 19/10/2015,E&T,BIKEABILITY MATERIALS,29/09/2015,2003.30,Materials- General,Bicycle Shops-Sales and Service,GPC
Statement 18/09/2015 - 19/10/2015,E&T,BIKEABILITY MATERIALS,01/10/2015,1253.30,Materials- General,Bicycle Shops-Sales and Service,GPC
Statement 18/09/2015 - 19/10/2015,E&T,BIKEABILITY MATERIALS,01/10/2015,1419.97,Materials- General,Bicycle Shops-Sales and Service,GPC
Statement 18/09/2015 - 19/10/2015,E&T,BIKEABILITY MATERIALS,01/10/2015,69.97,Materials- General,Bicycle Shops-Sales and Service,GPC
Statement 18/09/2015 - 19/10/2015,E&T,BIRMINGHAM NEW STREET,13/10/2015,21.78,Casual/Essential- General,Automobile Parking Lots and Garages,GPC
Statement 18/09/2015 - 19/10/2015,E&T,COLUMBUS TRAINLINE,08/10/2015,2.00,Training Expenses- General,Insurance-Sales and Underwriting,GPC
Statement 18/09/2015 - 19/10/2015,E&T,DAYS HOTEL HYDE PA,14/10/2015,104.83,Other Expenditure- General,"Lodging-Hotels, Motels, Resorts",GPC
Statement 18/09/2015 - 19/10/2015,E&T,DAYS HOTEL HYDE PA,15/10/2015,128.00,Subsistence- General,"Lodging-Hotels, Motels, Resorts",GPC
Statement 18/09/2015 - 19/10/2015,E&T,EAST MIDLANDS LEICESTER,15/10/2015,13.50,Casual/Essential- General,Automobile Parking Lots and Garages,GPC
Statement 18/09/2015 - 19/10/2015,E&T,EAST MIDLANDS TRAINS L,23/09/2015,19.20,Training Expenses- General,Passenger Railways,GPC
Statement 18/09/2015 - 19/10/2015,E&T,EASTMIDLANDSTRAINS,17/09/2015,173.50,Public Transport -  Staff- General,Passenger Railways,GPC
Statement 18/09/2015 - 19/10/2015,E&T,EASTMIDLANDSTRAINS,17/09/2015,131.50,Public Transport -  Staff- General,Passenger Railways,GPC
Statement 18/09/2015 - 19/10/2015,E&T,EASTMIDLANDSTRAINS,18/09/2015,184.50,Public Transport -  Staff- General,Passenger Railways,GPC
Statement 18/09/2015 - 19/10/2015,E&T,EASTMIDLANDSTRAINS,18/09/2015,149.00,Public Transport -  Staff- General,Passenger Railways,GPC
Statement 18/09/2015 - 19/10/2015,E&T,EASTMIDLANDSTRAINS,21/09/2015,149.00,Public Transport -  Staff- General,Passenger Railways,GPC
Statement 18/09/2015 - 19/10/2015,E&T,EASTMIDLANDSTRAINS,24/09/2015,161.50,Public Transport -  Staff- General,Passenger Railways,GPC
Statement 18/09/2015 - 19/10/2015,E&T,EASTMIDLANDSTRAINS,24/09/2015,167.50,Public Transport -  Staff- General,Passenger Railways,GPC
Statement 18/09/2015 - 19/10/2015,E&T,EASTMIDLANDSTRAINS,29/09/2015,483.00,Public Transport -  Staff- General,Passenger Railways,GPC
Statement 18/09/2015 - 19/10/2015,E&T,EASTMIDLANDSTRAINS,06/10/2015,196.00,Public Transport -  Staff- General,Passenger Railways,GPC
Statement 18/09/2015 - 19/10/2015,E&T,EASTMIDLANDSTRAINS,12/10/2015,131.50,Public Transport -  Staff- General,Passenger Railways,GPC
Statement 18/09/2015 - 19/10/2015,E&T,EASTMIDLANDSTRAINS,14/10/2015,204.20,Public Transport -  Staff- General,Passenger Railways,GPC
Statement 18/09/2015 - 19/10/2015,E&T,EASTMIDLANDSTRAINS,15/10/2015,125.60,Public Transport -  Staff- General,Passenger Railways,GPC
Statement 18/09/2015 - 19/10/2015,E&T,EASTMIDLANDSTRAINS,16/10/2015,262.00,Public Transport -  Staff- General,Passenger Railways,GPC
Statement 18/09/2015 - 19/10/2015,E&T,IBIS LONDON STRATFORD,28/09/2015,84.59,Conference- General,"Lodging-Hotels, Motels, Resorts",GPC
Statement 18/09/2015 - 19/10/2015,E&T,LUL TICKET MACHINE,15/10/2015,9.60,Casual/Essential- General,Passenger Railways,GPC
Statement 18/09/2015 - 19/10/2015,E&T,M6 TOLL,21/09/2015,5.50,Casual/Essential- General,"Bridge and Road Fees, Tolls",GPC
Statement 18/09/2015 - 19/10/2015,E&T,M6 TOLL,21/09/2015,4.00,Casual/Essential- General,"Bridge and Road Fees, Tolls",GPC
Statement 18/09/2015 - 19/10/2015,E&T,MILL ON THE SOAR,18/09/2015,99.25,Hospitality- General,"Drinking Places (Alcoholic Beverages)-Bars, Tavern",GPC
Statement 18/09/2015 - 19/10/2015,E&T,MILL ON THE SOAR,07/10/2015,59.44,Hospitality- General,"Drinking Places (Alcoholic Beverages)-Bars, Tavern",GPC
Statement 18/09/2015 - 19/10/2015,E&T,MILL ON THE SOAR,07/10/2015,80.21,Hospitality- General,"Drinking Places (Alcoholic Beverages)-Bars, Tavern",GPC
Statement 18/09/2015 - 19/10/2015,E&T,MILL ON THE SOAR,13/10/2015,40.00,Hospitality- General,"Drinking Places (Alcoholic Beverages)-Bars, Tavern",GPC
Statement 18/09/2015 - 19/10/2015,E&T,MILL ON THE SOAR,07/10/2015,-80.21,Training Expenses- General,"Drinking Places (Alcoholic Beverages)-Bars, Tavern",GPC
Statement 18/09/2015 - 19/10/2015,E&T,MORGANS LOCKSMITHS,28/09/2015,103.73,Other Equipment & Materials- General,"Shoe Repair Shops, Shoe Shine Parlors, Hat Cleanin",GPC
Statement 18/09/2015 - 19/10/2015,E&T,MOTEL ONE MANCHESTER PICC,23/09/2015,84.00,Conference- General,"Lodging-Hotels, Motels, Resorts",GPC
Statement 18/09/2015 - 19/10/2015,E&T,PAYPAL  BEAMLED,14/10/2015,59.99,Other Equipment & Materials- General,Miscellaneous House Furnishing Specialty Shops,GPC
Statement 18/09/2015 - 19/10/2015,E&T,PAYPAL  RETAILCENTR,22/09/2015,81.96,Other Equipment & Materials- General,Durable Goods Not Elsewhere Classified,GPC
Statement 18/09/2015 - 19/10/2015,E&T,PEAK DEVELOPMENT,05/10/2015,788.90,Other Equipment & Materials- General,Electrical Parts and Equipment,GPC
Statement 18/09/2015 - 19/10/2015,E&T,PREMIER INN 44536395,15/10/2015,105.75,Subsistence- General,PREMIER TRAVEL,GPC
Statement 18/09/2015 - 19/10/2015,E&T,TRAINLINE,18/09/2015,86.80,Training Expenses- General,Passenger Railways,GPC
Statement 18/09/2015 - 19/10/2015,E&T,TRAINLINE,08/10/2015,168.81,Training Expenses- General,Passenger Railways,GPC
Statement 18/09/2015 - 19/10/2015,E&T,VODAFONE LTD,06/10/2015,25.00,Other Equipment & Materials- General,Telecommunication Service Including Local and Long,GPC
Statement 18/09/2015 - 19/10/2015,E&T,WP-HEMMING GROUP L,22/09/2015,298.80,Conference- General,Business Services-Not Elsewhere Classified,GPC
Statement 18/09/2015 - 19/10/2015,E&T,WWW.DM-TOOLS.CO.UK,17/09/2015,32.46,Other Equipment & Materials- General,"Building Materials, Lumber Stores",GPC
Statement 18/09/2015 - 19/10/2015,E&T,WWW.DVLA.GOV.UK,06/10/2015,227.50,Road Licences- General,Government Services-Not Elsewhere Classified,GPC
Statement 18/09/2015 - 19/10/2015,E&T,WWW.DVLA.GOV.UK,06/10/2015,167.50,Road Licences- General,Government Services-Not Elsewhere Classified,GPC
Statement 18/09/2015 - 19/10/2015,E&T,WWW.DVLA.GOV.UK,12/10/2015,232.50,Road Licences- General,Government Services-Not Elsewhere Classified,GPC
Statement 18/09/2015 - 19/10/2015,E&T,WWW.HALL-FAST.COM,02/10/2015,43.74,Protective Clothing & Uniforms- General,Industrial Supplies Not Elsewhere Classified,GPC
Statement 18/09/2015 - 19/10/2015,E&T,WWW.INSCALE.CO.UK,23/09/2015,74.60,Other Equipment & Materials- General,Industrial Supplies Not Elsewhere Classified,GPC
Statement 18/09/2015 - 19/10/2015,E&T,WWW.STAPLES.CO.UK,05/10/2015,49.92,Other Equipment & Materials- General,"Stationery, Office, and School Supply Stores",GPC
Statement 18/09/2015 - 19/10/2015,Leicestershire Highways,Amazon Svcs Europe SAR,02/10/2015,50.70,Books- General,Book Stores,GPC
Statement 18/09/2015 - 19/10/2015,Leicestershire Highways,Amazon UK Marketplace,08/10/2015,1.89,Books- General,Book Stores,GPC
Statement 18/09/2015 - 19/10/2015,Leicestershire Highways,Amazon UK Marketplace,18/09/2015,186.90,Materials- General,Miscellaneous and Specialty Retail Stores,GPC
Statement 18/09/2015 - 19/10/2015,Leicestershire Highways,Amazon UK Marketplace,03/10/2015,10.29,Materials- General,Miscellaneous and Specialty Retail Stores,GPC
Statement 18/09/2015 - 19/10/2015,Leicestershire Highways,Amazon UK Marketplace,05/10/2015,22.57,Materials- General,Miscellaneous and Specialty Retail Stores,GPC
Statement 18/09/2015 - 19/10/2015,Leicestershire Highways,Amazon UK Marketplace,07/10/2015,18.74,Materials- General,Miscellaneous and Specialty Retail Stores,GPC
Statement 18/09/2015 - 19/10/2015,Leicestershire Highways,Amazon UK Marketplace,08/10/2015,3.10,Materials- General,Miscellaneous and Specialty Retail Stores,GPC
Statement 18/09/2015 - 19/10/2015,Leicestershire Highways,Amazon UK Marketplace,08/10/2015,24.76,Materials- General,Miscellaneous and Specialty Retail Stores,GPC
Statement 18/09/2015 - 19/10/2015,Leicestershire Highways,Amazon UK Marketplace,08/10/2015,1.04,Materials- General,Miscellaneous and Specialty Retail Stores,GPC
Statement 18/09/2015 - 19/10/2015,Leicestershire Highways,Amazon UK Retail,25/09/2015,46.73,Other Expenditure- General,Direct Marketers - Other,GPC
Statement 18/09/2015 - 19/10/2015,Leicestershire Highways,Amazon UK Retail,30/09/2015,28.25,Other Expenditure- General,Direct Marketers - Other,GPC
Statement 18/09/2015 - 19/10/2015,Leicestershire Highways,Amazon UK Retail,01/10/2015,40.95,Other Expenditure- General,Direct Marketers - Other,GPC
Statement 18/09/2015 - 19/10/2015,Leicestershire Highways,Amazon UK Retail,02/10/2015,-28.25,Other Expenditure- General,Direct Marketers - Other,GPC
Statement 18/09/2015 - 19/10/2015,Leicestershire Highways,Amazon UK Retail,03/10/2015,10.19,Other Expenditure- General,Direct Marketers - Other,GPC
Statement 18/09/2015 - 19/10/2015,Leicestershire Highways,Amazon UK Retail,04/10/2015,26.13,Other Expenditure- General,Direct Marketers - Other,GPC
Statement 18/09/2015 - 19/10/2015,Leicestershire Highways,Amazon UK Retail,08/10/2015,6.89,Other Expenditure- General,Direct Marketers - Other,GPC
Statement 18/09/2015 - 19/10/2015,Leicestershire Highways,Amazon UK Retail,17/10/2015,27.64,Other Expenditure- General,Direct Marketers - Other,GPC
Statement 18/09/2015 - 19/10/2015,Leicestershire Highways,DVSA,08/10/2015,80.00,Other Expenditure- General,Government Services-Not Elsewhere Classified,GPC
Statement 18/09/2015 - 19/10/2015,Leicestershire Highways,EA HAZARDOUS WASTE-DOM,01/10/2015,36.00,Other Expenditure- General,Government Services-Not Elsewhere Classified,GPC
Statement 18/09/2015 - 19/10/2015,Leicestershire Highways,GOV.UK/DART-CHARGE,25/09/2015,3.00,Casual/Essential- General,"Bridge and Road Fees, Tolls",GPC
Statement 18/09/2015 - 19/10/2015,Leicestershire Highways,MITCHELL STORAGE&DISTR,17/09/2015,83.30,Private Contractors- General,"Courier Services-Air and Ground, and Freight Forw",GPC
Statement 18/09/2015 - 19/10/2015,Leicestershire Highways,TESCO STORES 2950,06/10/2015,30.00,Materials- General,"Grocery Stores, Supermarkets",GPC
Statement 18/09/2015 - 19/10/2015,Leicestershire Highways,TESCO STORES 2950,16/10/2015,30.00,Materials- General,"Grocery Stores, Supermarkets",GPC
Statement 18/09/2015 - 19/10/2015,Leicestershire Highways,TVLICENSING.CO.UK,24/09/2015,-145.50,Schools Agency staff- Teaching Staff,"Management, Consulting and Public Relations Servic",GPC
Statement 18/09/2015 - 19/10/2015,Leicestershire Highways,TVLICENSING.CO.UK,05/10/2015,145.50,Schools Agency staff- Teaching Staff,"Management, Consulting and Public Relations Servic",GPC
Statement 18/09/2015 - 19/10/2015,Leicestershire Highways,TVLICENSING.CO.UK,05/10/2015,145.50,Schools Agency staff- Teaching Staff,"Management, Consulting and Public Relations Servic",GPC
Statement 18/09/2015 - 19/10/2015,Leicestershire Highways,TVLICENSING.CO.UK,05/10/2015,145.50,Schools Agency staff- Teaching Staff,"Management, Consulting and Public Relations Servic",GPC
Statement 18/09/2015 - 19/10/2015,Leicestershire Highways,TVLICENSING.CO.UK,05/10/2015,145.50,Schools Agency staff- Teaching Staff,"Management, Consulting and Public Relations Servic",GPC
Statement 18/09/2015 - 19/10/2015,Leicestershire Highways,TVLICENSING.CO.UK,05/10/2015,145.50,Schools Agency staff- Teaching Staff,"Management, Consulting and Public Relations Servic",GPC
Statement 18/09/2015 - 19/10/2015,Leicestershire Highways,WHSMITH.CO.UK,06/10/2015,129.50,Materials- General,CombinationMail/Phones and Retail Merchants,GPC
Statement 18/09/2015 - 19/10/2015,Public Health,Amazon UK Marketplace,08/10/2015,26.58,IT Equipment- Purchase - Hardware,Miscellaneous and Specialty Retail Stores,GPC
Statement 18/09/2015 - 19/10/2015,Public Health,COACHWISE LTD,15/10/2015,20.08,Consultants & Specialists- General,"Membership Clubs (Sports, Recreation, Athletic), C",GPC
Statement 18/09/2015 - 19/10/2015,Public Health,EB ALCOHOL CONCERN AN,24/09/2015,99.00,Training Expenses- General,Business Services-Not Elsewhere Classified,GPC
Statement 18/09/2015 - 19/10/2015,Public Health,FACEBOOK 66W3U72X32,30/09/2015,30.01,Advertising- General,Advertising Services,GPC
Statement 18/09/2015 - 19/10/2015,Public Health,IMAGO,28/09/2015,13.25,Contract Catering- General,"Lodging-Hotels, Motels, Resorts",GPC
Statement 18/09/2015 - 19/10/2015,Public Health,NCP LIMITED,05/10/2015,7.00,Subsistence- General,Automobile Parking Lots and Garages,GPC
Statement 18/09/2015 - 19/10/2015,Public Health,TRAINLINE,25/09/2015,59.47,Public Transport -  Staff- General,Passenger Railways,GPC
Statement 18/09/2015 - 19/10/2015,Public Health,TRAINLINE,28/09/2015,154.02,Public Transport -  Staff- General,Passenger Railways,GPC
"**Amounts stated are net of VAT, except where VAT has not been recovered.",,,,,,,
